{"text_format":"1","workbook":"xlsx","n_sheets":17,"sheets":["Maquette","récap","TS MESR","Indicateurs","1-tab emplois_ETAB","2-tab_aut_budg_Fondation","2-tab_aut_budg_AGR","3-tab_destination_origine_Fonda","3-tab_destination_origine_AGR","4-tab_financier_Fondation","5-tab compte de tiers_Fondation","6-tab CR_TF_Fondation","6-tab CR_TF_AGR","6-tab CR_TF_SIE","7-tab Plan_tréso_Fondation","8-tab recettes_fléchées_AGR","Annexe Synthèse_Fondation"],"not_rendered":{"charts":0,"images":0,"macros":1,"external_links":2,"defined_names":112,"comments":14,"pivot_tables":0},"unopened":[],"bounds":{"document_bytes":16777216,"sheet_cells":100000,"rows_first":2000,"rows_last":500,"rows_between":2000,"halvings":0,"cell_chars":16384,"cell_head_chars":4096},"cells_cut":0,"cells_raw":0,"read":"whole","date_system":"1900"}

{"sheet":"Maquette","index":0,"n_rows":5,"n_cols":2,"rows_kept":5,"cut":false,"hidden":false,"merged":[[1,0,1,1]]}
[]
["VARIABLES A SAISIR"]
["Année",2024]
["Budget","initial"]
["N° budget"]

{"sheet":"récap","index":1,"n_rows":13,"n_cols":5,"rows_kept":13,"cut":false,"hidden":false,"merged":[[0,1,0,3],[1,1,1,3]]}
[null,"EPSCP - synthèse des documents budgétaires"]
[]
[]
[null,"Intitulé du tableau","Périmètre","Soumission au CA","Contrôles entre tableaux"]
[]
[1,"Tableau des emplois","Budget de l'établissement","Pour vote",{"$f":"IF('1-tab emplois_ETAB'!F20<>\"\",\"Problème dotation < emplois ETAB\",\"OK\")","v":"OK"}]
[2,"Tableau des autorisations budgétaires","Fondation universitaire","Pour vote. Pour les SIE, le vote relève du CA de l'établissement de rattachement",{"$f":"IF((IF(AND('2-tab_aut_budg_Fondation'!E32=\"\",'2-tab_aut_budg_Fondation'!F32=\"\",'2-tab_aut_budg_Fondation'!E33=\"\",'2-tab_aut_budg_Fondation'!F33=\"\",'2-tab_aut_budg_Fondation'!E34=\"\",'2-tab_aut_budg_Fondation'!F34=\"\",'2-tab_aut_budg_Fondation'!N32=\"\",'2-tab_aut_budg_Fondation'!O32=\"\",'2-tab_aut_budg_Fondation'!N33=\"\",'2-tab_aut_budg_Fondation'!O33=\"\",'2-tab_aut_budg_Fondation'!N34=\"\",'2-tab_aut_budg_Fondation'!O34=\"\",'2-tab_aut_budg_Fondation'!N35=\"\",'2-tab_aut_budg_Fondation'!O35=\"\",'2-tab_aut_budg_Fondation'!L32=\"\"),\"\",\"Problème(s) avec tableau 3 ETAB\")&\"\n\"&IF('2-tab_aut_budg_Fondation'!L33=\"\",\"\",\"Problème(s) avec tableau 4\")&\"\n\"&IF(AND('2-tab_aut_budg_Fondation'!G32=\"\",'2-tab_aut_budg_Fondation'!G33=\"\",'2-tab_aut_budg_Fondation'!G34=\"\",'2-tab_aut_budg_Fondation'!G35=\"\",'2-tab_aut_budg_Fondation'!H32=\"\",'2-tab_aut_budg_Fondation'!H33=\"\",'2-tab_aut_budg_Fondation'!H34=\"\",'2-tab_aut_budg_Fondation'!H35=\"\",'6-tab CR_TF_Fondation'!N46=\"\"),\"\",\"Problème(s) avec tableau 6 ETAB\")&\"\n\"&IF(AND('2-tab_aut_budg_Fondation'!I32=\"\",'2-tab_aut_budg_Fondation'!I33=\"\",'2-tab_aut_budg_Fondation'!I34=\"\",'2-tab_aut_budg_Fondation'!P32=\"\",'2-tab_aut_budg_Fondation'!P33=\"\",'2-tab_aut_budg_Fondation'!P34=\"\",'2-tab_aut_budg_Fondation'!P35=\"\",'2-tab_aut_budg_Fondation'!P36=\"\",'2-tab_aut_budg_Fondation'!Q32=\"\",'2-tab_aut_budg_Fondation'!Q33=\"\",'2-tab_aut_budg_Fondation'!Q34=\"\"),\"\",\"Problème(s) avec tableau 7\")&\"\n\"&IF(AND('2-tab_aut_budg_Fondation'!R32=\"\",'2-tab_aut_budg_Fondation'!R33=\"\",'2-tab_aut_budg_Fondation'!R34=\"\"),\"\",\"Problème(s) avec tableau 8 ETAB\"))=\"\n\n\n\n\",\"OK\",(IF(AND('2-tab_aut_budg_Fondation'!E32=\"\",'2-tab_aut_budg_Fondation'!F32=\"\",'2-tab_aut_budg_Fondation'!E33=\"\",'2-tab_aut_budg_Fondation'!F33=\"\",'2-tab_aut_budg_Fondation'!E34=\"\",'2-tab_aut_budg_Fondation'!F34=\"\",'2-tab_aut_budg_Fondation'!N32=\"\",'2-tab_aut_budg_Fondation'!O32=\"\",'2-tab_aut_budg_Fondation'!N33=\"\",'2-tab_aut_budg_Fondation'!O33=\"\",'2-tab_aut_budg_Fondation'!N34=\"\",'2-tab_aut_budg_Fondation'!O34=\"\",'2-tab_aut_budg_Fondation'!N35=\"\",'2-tab_aut_budg_Fondation'!O35=\"\",'2-tab_aut_budg_Fondation'!L32=\"\"),\"\",\"Problème(s) avec tableau 3 ETAB\")&\"\n\"&IF('2-tab_aut_budg_Fondation'!L33=\"\",\"\",\"Problème(s) avec tableau 4\")&\"\n\"&IF(AND('2-tab_aut_budg_Fondation'!G32=\"\",'2-tab_aut_budg_Fondation'!G33=\"\",'2-tab_aut_budg_Fondation'!G34=\"\",'2-tab_aut_budg_Fondation'!G35=\"\",'2-tab_aut_budg_Fondation'!H32=\"\",'2-tab_aut_budg_Fondation'!H33=\"\",'2-tab_aut_budg_Fondation'!H34=\"\",'2-tab_aut_budg_Fondation'!H35=\"\",'6-tab CR_TF_Fondation'!N46=\"\"),\"\",\"Problème(s) avec tableau 6 ETAB\")&\"\n\"&IF(AND('2-tab_aut_budg_Fondation'!I32=\"\",'2-tab_aut_budg_Fondation'!I33=\"\",'2-tab_aut_budg_Fondation'!I34=\"\",'2-tab_aut_budg_Fondation'!P32=\"\",'2-tab_aut_budg_Fondation'!P33=\"\",'2-tab_aut_budg_Fondation'!P34=\"\",'2-tab_aut_budg_Fondation'!P35=\"\",'2-tab_aut_budg_Fondation'!P36=\"\",'2-tab_aut_budg_Fondation'!Q32=\"\",'2-tab_aut_budg_Fondation'!Q33=\"\",'2-tab_aut_budg_Fondation'!Q34=\"\"),\"\",\"Problème(s) avec tableau 7\")&\"\n\"&IF(AND('2-tab_aut_budg_Fondation'!R32=\"\",'2-tab_aut_budg_Fondation'!R33=\"\",'2-tab_aut_budg_Fondation'!R34=\"\"),\"\",\"Problème(s) avec tableau 8 ETAB\")))","v":{"$error":"#REF!"}}]
[3,"Tableau des dépenses par destination et recettes par origine","Fondation universitaire","Pour information",{"$f":"IF((IF(COUNTA(CONTROLES_TAB3_ETAB)-COUNTIF(CONTROLES_TAB3_1_ETAB,\"\")-COUNTIF(CONTROLES_TAB3_2_ETAB,\"\")-COUNTIF(CONTROLES_TAB3_3_ETAB,\"\")-COUNTIF(CONTROLES_TAB3_4_ETAB,\"\")=0,\"\",\"Problème(s) avec tableau 2 ETAB\")&\"\n\"&IF(AND('3-tab_destination_origine_Fonda'!M52=\"\",'3-tab_destination_origine_Fonda'!L30=\"\"),\"\",\"Problème(s) avec tableau 4\")&\"\n\"&IF(AND('3-tab_destination_origine_Fonda'!H54=\"\",'3-tab_destination_origine_Fonda'!I54=\"\",'3-tab_destination_origine_Fonda'!J54=\"\"),\"\",\"Problème(s) avec tableau 8 ETAB\"))=\"\n\n\",\"OK\",(IF(COUNTA(CONTROLES_TAB3_ETAB)-COUNTIF(CONTROLES_TAB3_1_ETAB,\"\")-COUNTIF(CONTROLES_TAB3_2_ETAB,\"\")-COUNTIF(CONTROLES_TAB3_3_ETAB,\"\")-COUNTIF(CONTROLES_TAB3_4_ETAB,\"\")=0,\"\",\"Problème(s) avec tableau 2 ETAB\")&\"\n\"&IF(AND('3-tab_destination_origine_Fonda'!M52=\"\",'3-tab_destination_origine_Fonda'!L30=\"\"),\"\",\"Problème(s) avec tableau 4\")&\"\n\"&IF(AND('3-tab_destination_origine_Fonda'!H54=\"\",'3-tab_destination_origine_Fonda'!I54=\"\",'3-tab_destination_origine_Fonda'!J54=\"\"),\"\",\"Problème(s) avec tableau 8 ETAB\")))","v":{"$error":"#REF!"}}]
[4,"Tableau d'équilibre financier","Fondation universitaire","Pour vote","OK"]
[5,"Tableau des opération pour compte de tiers","Fondation universitaire","Pour information",{"$f":"IF((IF(AND('5-tab compte de tiers_Fondation'!E25=\"\",'5-tab compte de tiers_Fondation'!F25=\"\"),\"\",\"Problème(s) avec tableau 4\"))=\"\",\"OK\",(IF(AND('5-tab compte de tiers_Fondation'!E25=\"\",'5-tab compte de tiers_Fondation'!F25=\"\"),\"\",\"Problème(s) avec tableau 4\")))","v":"OK"}]
[6,"Tableau de situation patrimoniale (tableau compte de résultat - tableau de financement)","Fondation universitaire","Pour vote","OK"]
[7,"Tableau présentant le plan de trésorerie","Fondation universitaire","Pour information",{"$f":"IF((IF(AND('7-tab Plan_tréso_Fondation'!P10=\"\",'7-tab Plan_tréso_Fondation'!P11=\"\",'7-tab Plan_tréso_Fondation'!P12=\"\",'7-tab Plan_tréso_Fondation'!P13=\"\",'7-tab Plan_tréso_Fondation'!P14=\"\",'7-tab Plan_tréso_Fondation'!P16=\"\",'7-tab Plan_tréso_Fondation'!P17=\"\",'7-tab Plan_tréso_Fondation'!P18=\"\",'7-tab Plan_tréso_Fondation'!P30=\"\",'7-tab Plan_tréso_Fondation'!P31=\"\",'7-tab Plan_tréso_Fondation'!P33=\"\"),\"\",\"Problème(s) avec tableau 2 ETAB\")&\"\n\"&IF(AND('7-tab Plan_tréso_Fondation'!P19=\"\",'7-tab Plan_tréso_Fondation'!P23=\"\",'7-tab Plan_tréso_Fondation'!P39=\"\",'7-tab Plan_tréso_Fondation'!P43=\"\",'7-tab Plan_tréso_Fondation'!P48=\"\"),\"\",\"Problème(s) avec tableau 4\")&\"\n\"&IF('7-tab Plan_tréso_Fondation'!P49=\"\",\"\",\"Problème avec tableau 6 ETAB\")&\"\n\"&IF(AND('7-tab Plan_tréso_Fondation'!Q16=\"\",'7-tab Plan_tréso_Fondation'!Q17=\"\",'7-tab Plan_tréso_Fondation'!Q18=\"\",'7-tab Plan_tréso_Fondation'!Q35=\"\",'7-tab Plan_tréso_Fondation'!Q36=\"\",'7-tab Plan_tréso_Fondation'!Q38=\"\"),\"\",\"Problème(s) avec tableau 8 ETAB\"))=\"\n\n\n\",\"OK\",(IF(AND('7-tab Plan_tréso_Fondation'!P10=\"\",'7-tab Plan_tréso_Fondation'!P11=\"\",'7-tab Plan_tréso_Fondation'!P12=\"\",'7-tab Plan_tréso_Fondation'!P13=\"\",'7-tab Plan_tréso_Fondation'!P14=\"\",'7-tab Plan_tréso_Fondation'!P16=\"\",'7-tab Plan_tréso_Fondation'!P17=\"\",'7-tab Plan_tréso_Fondation'!P18=\"\",'7-tab Plan_tréso_Fondation'!P30=\"\",'7-tab Plan_tréso_Fondation'!P31=\"\",'7-tab Plan_tréso_Fondation'!P33=\"\"),\"\",\"Problème(s) avec tableau 2 ETAB\")&\"\n\"&IF(AND('7-tab Plan_tréso_Fondation'!P19=\"\",'7-tab Plan_tréso_Fondation'!P23=\"\",'7-tab Plan_tréso_Fondation'!P39=\"\",'7-tab Plan_tréso_Fondation'!P43=\"\",'7-tab Plan_tréso_Fondation'!P48=\"\"),\"\",\"Problème(s) avec tableau 4\")&\"\n\"&IF('7-tab Plan_tréso_Fondation'!P49=\"\",\"\",\"Problème avec tableau 6 ETAB\")&\"\n\"&IF(AND('7-tab Plan_tréso_Fondation'!Q16=\"\",'7-tab Plan_tréso_Fondation'!Q17=\"\",'7-tab Plan_tréso_Fondation'!Q18=\"\",'7-tab Plan_tréso_Fondation'!Q35=\"\",'7-tab Plan_tréso_Fondation'!Q36=\"\",'7-tab Plan_tréso_Fondation'!Q38=\"\"),\"\",\"Problème(s) avec tableau 8 ETAB\")))","v":{"$error":"#REF!"}}]
["Annexe 5","Tableau de synthèse","Fondation universitaire",null,"OK"]

{"sheet":"TS MESR","index":2,"n_rows":30,"n_cols":7,"rows_kept":30,"cut":false,"hidden":false,"merged":[[0,2,0,4]]}
["UBS",null,{"$f":"IF(Maquette!B4=\"initial\",CONCATENATE(\"Budget \",Maquette!B4,\" \",Maquette!B3),CONCATENATE(\"Budget rectificatif \",Maquette!B5,\" \",Maquette!B3))","v":"Budget initial 2024"}]
[null,null,"budget agrégé",null,"budget établissement"]
[null,null,"hors SIE",null,"avec SIE"]
[]
["T6","résultat net comptable",{"$f":"'6-tab CR_TF_Fondation'!F14-'6-tab CR_TF_Fondation'!L14","v":-40337},null,{"$f":"'6-tab CR_TF_Fondation'!F14-'6-tab CR_TF_Fondation'!L14","v":-40337},null,"onglet \"6-tab CR_TF_ETAB\" : cellule F 14 (si perte) ou cellule L 14 (si bénéfice)"]
["T6","CAF",{"$f":"'6-tab CR_TF_Fondation'!F28","v":-30646},null,{"$f":"'6-tab CR_TF_Fondation'!F28","v":-30646},null,"onglet \"6-tab CR_TF_ETAB\" : cellule F 28"]
["T6","Variation FDR",{"$f":"'6-tab CR_TF_Fondation'!L46","v":-44646},null,{"$f":"'6-tab CR_TF_Fondation'!L46","v":-44646},null,"onglet \"6-tab CR_TF_ETAB\" : cellule L 46"]
["T6","FDR",{"$f":"'6-tab CR_TF_Fondation'!L49","v":311301.62},null,{"$f":"'6-tab CR_TF_Fondation'!L49","v":311301.62},null,"onglet \"6-tab CR_TF_ETAB\" : cellule L 49"]
[]
["T4","variation de la trésorerie",{"$f":"'6-tab CR_TF_Fondation'!L48","v":-110676},null,{"$f":"'6-tab CR_TF_Fondation'!L48","v":-110676},null,"onglet \"6-tab CR_TF_ETAB\" : cellule L 48"]
["T6","trésorerie",{"$f":"'6-tab CR_TF_Fondation'!L51","v":140926.54},null,{"$f":"'6-tab CR_TF_Fondation'!L51","v":140926.54},null,"onglet \"6-tab CR_TF_ETAB\" : cellule L 51"]
[]
["T6","produits",{"$f":"'6-tab CR_TF_Fondation'!L13","v":470280},null,{"$f":"'6-tab CR_TF_Fondation'!L13","v":470280},null,"onglet \"6-tab CR_TF_ETAB\" : cellule L 13"]
["T6","produits encaissables",{"$f":"'6-tab CR_TF_Fondation'!L13+'6-tab CR_TF_Fondation'!F24","v":465000},null,{"$f":"'6-tab CR_TF_Fondation'!L13+'6-tab CR_TF_Fondation'!F24","v":465000},null,"onglet \"6-tab CR_TF_ETAB\" : cellule L 13 + cellule F 24"]
["T2","SCSP",{"$f":"'2-tab_aut_budg_Fondation'!R12","v":0},null,{"$f":"'2-tab_aut_budg_Fondation'!R12","v":0},null,"onglet \"2-tab_aut_budg_ETAB\" cellule R 12"]
[]
["T6","charges de fonctionnement décaissables",{"$f":"'6-tab CR_TF_Fondation'!F13-'6-tab CR_TF_Fondation'!F23","v":495646},null,{"$f":"'6-tab CR_TF_Fondation'!F13-'6-tab CR_TF_Fondation'!F23","v":495646},null,"onglet \"6-tab CR_TF_ETAB\" : cellule F 13 - cellule F 23"]
["T6","charges de personnels",{"$f":"'6-tab CR_TF_Fondation'!F9","v":259871},null,{"$f":"'6-tab CR_TF_Fondation'!F9","v":259871},null,"onglet \"6-tab CR_TF_ETAB\" : cellule F 9"]
[]
["T6","emplois hors IAF",{"$f":"'6-tab CR_TF_Fondation'!F36","v":14000},null,{"$f":"'6-tab CR_TF_Fondation'!F36","v":14000},null,"onglet \"6-tab CR_TF_ETAB\" : cellule F 36 (attention fusion cellules F36/F37/F38)"]
[]
["T2","solde budgétaire ",{"$f":"'2-tab_aut_budg_AGR'!L30-'2-tab_aut_budg_AGR'!R30","v":0},null,{"$f":"'2-tab_aut_budg_Fondation'!L30-'2-tab_aut_budg_Fondation'!R30","v":-110676},null,"onglet \"2-tab_aut_budg_ETAB\" cellule R 30 (si déficit) ou cellule L 30 (si excédent)"]
["T2","recettes (encaissements)",{"$f":"'2-tab_aut_budg_AGR'!R28","v":0},null,{"$f":"'2-tab_aut_budg_Fondation'!R28","v":399000},null,"onglet \"2-tab_aut_budg_ETAB\" cellule R 28"]
["T2","autorisations d'engagements",{"$f":"'2-tab_aut_budg_AGR'!K28","v":0},null,{"$f":"'2-tab_aut_budg_Fondation'!K28","v":519676},null,"onglet \"2-tab_aut_budg_ETAB\" cellule K 28"]
[]
["T9","restes à payer sur AE consommées en fin d'année n (CP)",null,null,{"$f":"#REF!","v":{"$error":"#REF!"}},null,"onglet \"9-tab op_pluriannuelles_ETAB\" cellule O 27"]
["T9","restes à encaisser (année n+1 et suivantes)",null,null,{"$f":"#REF!","v":{"$error":"#REF!"}},null,"onglet \"9-tab op_pluriannuelles_ETAB\" cellule H 54"]
[]
["synthèse","niveau final des restes à payer",null,null,{"$f":"'Annexe Synthèse_Fondation'!H52","v":10000},null,"onglet \"Annexe Synthèse_ETAB\" cellule H 52"]
["synthèse","niveau final de la trésorerie fléchée",null,null,{"$f":"'Annexe Synthèse_Fondation'!H59","v":0},null,"onglet \"Annexe Synthèse_ETAB\" cellule H 59"]

{"sheet":"Indicateurs","index":3,"n_rows":76,"n_cols":7,"rows_kept":76,"cut":false,"hidden":false,"merged":[]}
["UBS",null,{"$f":"IF(Maquette!B4=\"initial\",CONCATENATE(\"BI \",Maquette!B3),CONCATENATE(\"Budget rectificatif \",Maquette!B3,\" \",Maquette!B5))","v":"BI 2024"}]
[]
["plafond Etat",null,{"$f":"'1-tab emplois_ETAB'!F19","v":843},null,"tableau 1 : ligne 19"]
["plafond  ressources propres",null,{"$f":"'1-tab emplois_ETAB'!K19","v":290},null,"tableau 1 : ligne 19"]
["Total ETPT OREMS",null,{"$f":"C3+C4","v":1133},null,"tableau 1 : ligne 19"]
[]
["Plafond Etat notifié MESR",null,{"$f":"'1-tab emplois_ETAB'!F19","v":843}]
[]
["dépenses de personnels (64 + 631-632-633)",null,{"$f":"'6-tab CR_TF_Fondation'!F9","v":259871},null,"onglet \"6-tab CR_TF_ETAB\" : cellule F9"]
["MS OREMS"]
[]
["dont rémunérations principales (64111)"]
[]
["dont cours complémentaires OREMS"]
["poids CC/MS OREMS"]
[]
["masse salariale notifiée MESR"]
[]
["masse salariale rémunérée hors SCSP"]
["% masse salariale rémunérée hors SCSP"]
[]
["dépenses totales section de fct",null,{"$f":"'6-tab CR_TF_Fondation'!F13","v":510617},null,"onglet \"6-tab CR_TF_ETAB\" : cellule F 13"]
["% masse salariale sur total classe 6",null,{"$f":"IF(C22=0,0,C9/C22)","v":0.50893526850849069},null,"= ligne 9 / ligne 22"]
[]
["dépenses de fonctionnement (section de fct - MS)",null,{"$f":"C22-C9","v":250746},null,"= ligne 22 - ligne 9"]
["% fonctionnement sur total classe 6",null,{"$f":"IF(C22=0,0,C25/C22)","v":0.49106473149150931},null,"= ligne 25 / ligne 22"]
["vérif MS + fct",null,{"$f":"C23+C26","v":1},null,"= ligne 23 + ligne 26"]
[]
["dépenses décaissables section de fct",null,{"$f":"'6-tab CR_TF_Fondation'!F13-'6-tab CR_TF_Fondation'!F23","v":495646},null,"onglet \"6-tab CR_TF_ETAB\" : cellule F 13 - cellule F 23",null,{"$f":"C29/360","v":1376.7944444444445}]
["% masse salariale sur dépenses décaissables",null,{"$f":"IF(C29=0,0,C9/C29)","v":0.52430767120081667},null,"= ligne 9 / ligne22"]
[]
["dépenses d'investissements",null,{"$f":"'6-tab CR_TF_Fondation'!F36","v":14000},null,"onglet \"6-tab CR_TF_ETAB\" : cellule F36 (attention fusion cellules F36/F37/F38)"]
[]
["SCSP brute notifiée",null,null,null,"sans objet"]
["le"]
["mise en réserve"]
["% age de la mise en réserve"]
["mobilisation fonds de roulement"]
["SCSP nette"]
["dont masse salariale"]
["%age masse salariale"]
["dont fonctionnement"]
["%age fonctionnement"]
[]
["Poids de la SCSP sur les recettes encaissables",null,{"$f":"IF(C49=0,0,C39/C49)","v":0}]
["moyenne nationale 2013 : 83,6% rapport IGF IGAENR mars 2015"]
["recettes totales",null,{"$f":"'6-tab CR_TF_Fondation'!L13","v":470280},null,"onglet \"6-tab CR_TF_ETAB\" : cellule L 13"]
[]
["recettes encaissables",null,{"$f":"'6-tab CR_TF_Fondation'!L13+'6-tab CR_TF_Fondation'!F24","v":465000},null,"onglet \"6-tab CR_TF_ETAB\" : cellule  L 13 + cellule F 24"]
["% masse salariale sur recettes enc. Ratio MESR 81_83%",null,{"$f":"IF(C49=0,0,C9/C49)","v":0.5588623655913979},null,"=ligne 13 / ligne 54"]
[null,null,null,null,{"$f":"CONCATENATE(\"si % inférieur à \",F51*100,\" %\")","v":"si % inférieur à 80 %"},0.8]
["ressources propres (cl.7 -77 -78)",null,null,null,{"$f":"CONCATENATE(\"si % entre \",F51*100,\" et \",F52*100,\" %\")","v":"si % entre 80 et 83 %"},0.83]
["% masse salariale sur ressources propres (notion CRB)",null,null,null,{"$f":"CONCATENATE(\"si % supérieur à \",F52*100,\" %\")","v":"si % supérieur à 83 %"}]
[]
["recettes d'investissements",null,{"$f":"'6-tab CR_TF_Fondation'!L40-'6-tab CR_TF_Fondation'!L35","v":0},null,"onglet \"6-tab CR_TF_ETAB\" : cellule L 40 - cellule L 35"]
["%investissements financés par subventions",null,{"$f":"IF(C32=0,0,C55/C32)","v":0},null,"= ligne 55 / ligne 32"]
["% invsetissements financés par la CAF",null,{"$f":"IF(C32=0,0,C66/C32)","v":-2.1890000000000001},null,"= ligne 66 / ligne 32"]
[]
["solde budgétaire (à compter de 2016)",null,{"$f":"'2-tab_aut_budg_Fondation'!L30-'2-tab_aut_budg_Fondation'!R30","v":-110676},null,"onglet \"2-tab_aut_budg_ETAB\" : cellule R 30 (si déficit) ou cellule L 30 (si excédent)"]
[]
["résultat net comptable",null,{"$f":"'6-tab CR_TF_Fondation'!F14-'6-tab CR_TF_Fondation'!L14","v":-40337},null,"onglet \"6-tab CR_TF_ETAB\" : cellule  L 14 (si perte) ou cellule F 14 (si bénéfice)"]
[]
["variation FDR",null,{"$f":"'6-tab CR_TF_Fondation'!L46","v":-44646},null,"onglet \"6-tab CR_TF_ETAB\" : cellule L 46"]
["vérif"]
[]
["CAF/IAF",null,{"$f":"'6-tab CR_TF_Fondation'!F28","v":-30646},null,"onglet \"6-tab CR_TF_ETAB\" : cellule F 28"]
[]
["EBE"]
[]
["FDR ",null,{"$f":"'6-tab CR_TF_Fondation'!L49","v":311301.62},null,"onglet \"6-tab CR_TF_ETAB\" : cellule L 49"]
["FDR en jours de dépenses décaissables",null,{"$f":"IF(C29=0,0,C70*360/C29)","v":226.10609830403152},null,{"$f":"CONCATENATE(\"si inférieur à \",F71,\" jours\")","v":"si inférieur à 20 jours"},20]
[null,null,null,null,{"$f":"CONCATENATE(\"si supérieur à \",F72,\" jours\")","v":"si supérieur à 30 jours"},30]
["TRESORERIE",null,{"$f":"'6-tab CR_TF_Fondation'!L51","v":140926.54},null,"onglet \"6-tab CR_TF_ETAB\" : cellule L 51"]
["TRESORERIE en jours de dépenses décaissables",null,{"$f":"IF(C29=0,0,C73*360/C29)","v":102.35844614906608},null,{"$f":"CONCATENATE(\"si inférieur à \",F74,\" jours\")","v":"si inférieur à 30 jours"},30]
[null,null,null,null,{"$f":"CONCATENATE(\"si supérieur à \",F75,\" jours\")","v":"si supérieur à 31 jours"},31]
["BFR",null,{"$f":"C70-C73","v":170375.08},null,"= ligne 70 - ligne 73"]

{"sheet":"1-tab emplois_ETAB","index":4,"n_rows":26,"n_cols":17,"rows_kept":26,"cut":false,"hidden":false,"merged":[[0,1,0,15],[1,1,1,15],[5,5,5,8],[5,10,5,13],[5,15,6,15],[6,2,6,3],[6,5,6,8],[6,10,6,13],[3,1,3,15],[7,1,9,1],[7,2,8,2],[7,10,7,13],[7,5,7,8],[8,5,8,8],[9,5,9,8],[8,10,8,13],[9,10,9,13],[10,1,10,3],[10,5,10,8],[10,10,10,13],[12,1,12,3],[12,5,12,8],[12,10,12,13],[14,1,16,1],[14,2,15,2],[14,10,14,13],[14,5,14,8],[15,5,15,8],[16,5,16,8],[15,10,15,13],[16,10,16,13],[17,1,17,3],[17,5,17,8],[17,10,17,13],[18,1,18,3],[18,5,18,8],[18,10,18,13],[24,1,24,15],[25,1,25,16],[19,5,19,8],[20,1,20,3],[20,5,20,8],[22,1,22,15],[23,1,23,15],[19,10,19,13],[20,10,20,13]]}
[null,"Tableau 1 - Université de Bretagne Sud (0561718N) : Etablissement principal + Fondation"]
[null,{"$f":"\"Tableau des emplois présenté par l’établissement à l’appui du budget \"&Maquette!B4&\" \"&Maquette!B5&\" \"&Maquette!B3","v":"Tableau des emplois présenté par l’établissement à l’appui du budget initial  2024"}]
[]
[null,"POUR VOTE DE L'ORGANE DÉLIBÉRANT"]
[null,null,null,null,null,null,"(A)",null,null,null,null,"(B)",null,null,null,"( C ) = (A) + (B)"]
[null,null,null,null,null,"Emplois sous plafond Etat *",null,null,null,null,"Emplois financés hors SCSP",null,null,null,null,"Global"]
[null,"Catégories d'emplois","Nature des emplois",null,null,"En ETPT",null,null,null,null,"En ETPT"]
[null,"Enseignants, enseignants-chercheurs, chercheurs","Permanents","Titulaires",null,383,null,null,null,null,null,null,null,0,null,{"$f":"F8","v":383}]
[null,null,null,"CDI",null,7.5,null,null,null,null,9,null,null,null,null,{"$f":"F9+K9","v":16.5}]
[null,null,"Non permanents","CDD",null,77.5,null,null,null,null,92,null,null,null,null,{"$f":"F10+K10","v":169.5}]
[null,"S/total EC",null,null,null,{"$f":"SUM(F8:I10)","v":468},null,null,null,null,{"$f":"SUM(K9:N10)","v":101},null,null,null,null,{"$f":"SUM(P8:P10)","v":569}]
[]
[null,"Elèves fonctionnaires stagiaires des écoles nationales supérieures (ENS)",null,null,null,null,null,null,null,null,null,null,null,null,null,{"$f":"F13","v":0}]
[]
[null,"BIATSS (personnels de bibliothèques, ingénieurs, administratifs, techniques et de service)","Permanents","Titulaires",null,287,null,null,null,null,null,null,null,null,null,{"$f":"F15","v":287}]
[null,null,null,"CDI",null,26,null,null,null,null,19,null,null,null,null,{"$f":"K16+F16","v":45}]
[null,null,"Non permanents","CDD",null,62,null,null,null,null,170,null,null,null,null,{"$f":"K17+F17","v":232}]
[null,"S/total Biatss",null,null,null,{"$f":"SUM(F15:I17)","v":375},null,null,null,null,{"$f":"SUM(K16:N17)","v":189},null,null,null,null,{"$f":"SUM(P15:P17)","v":564}]
[null,"Totaux",null,null,null,{"$f":"F11+F13+F18","v":843},null,null,null,"(1)",{"$f":"K11+K18","v":290},null,null,null,null,{"$f":"P11+P13+P18","v":1133}]
[null,null,null,null,null,{"$f":"IF(F19>F21,\"! Nombre total d'emplois sous plafond > à la notification de l'Etat\",\"\")","v":""},null,null,null,null,null,null,null,null,null,"Plafond global des emplois voté par le CA **","(2)"]
[null,"Rappel du plafond des emplois fixé par l'Etat",null,null,null,843,null,null,null,"(3)"]
[null,"Note sur les modalités de renseignement du tableau"]
[null,"Ce tableau doit être annexé au budget de l'établissement et, en cas de modification, aux budgets rectificatifs. Les chiffres qu'il contient doivent être exprimés en équivalents temps plein travaillés (ETPT). Le guide de décompte des emplois élaboré par la DAF et la DGESIP précise les régles de décompte des emplois en ETPT en fonction des catégories de personnel."]
[null,"Seul est soumis au vote du conseil d'administration le plafond global des emplois (case annotée (2))"]
[null,"Le nombre total d'emplois sous plafond Etat (case annotée (1)) ne peut être supérieur au plafond des emplois Etat qui a été notifié à l'établissement et rappelé en case (3)"]
[null,"* : cf. article R719-54 du code de l'éducation : \"plafond d'emplois fixé par l'État relatif aux emplois financés par l'État\"\n** : cf. article R719-54 du code de l'éducation : \"plafond d'autorisation de l'ensemble des emplois rémunérés par l'établissement\""]

{"sheet":"2-tab_aut_budg_Fondation","index":5,"n_rows":37,"n_cols":19,"rows_kept":37,"cut":false,"hidden":false,"merged":[[0,1,0,18],[1,1,1,18],[7,13,7,18],[8,2,8,3],[8,4,8,5],[8,6,8,7],[8,10,8,11],[7,1,7,11],[8,8,8,9]]}
[null,"Tableau 2 - Université de Bretagne Sud (0561718N) : Fondation"]
[null,{"$f":"\"Autorisations budgétaires - Budget consolidé \"&Maquette!B4&\" \"&Maquette!B5&\" \"&Maquette!B3","v":"Autorisations budgétaires - Budget consolidé initial  2024"}]
[]
[]
[null,"POUR VOTE DE L'ORGANE DÉLIBÉRANT"]
[]
[]
[null,"Dépenses",null,null,null,null,null,null,null,null,null,null,null,"Recettes"]
[null,null,"Exécution N-1: BR2/2023\n",null,"Budget initial\n(a)",null,"Nouveau BR",null,"Somme des BR\n(yc nouveau BR) (b)",null,"TOTAL : dernier budget modifié\n(c) = (a) + (b)",null,null,"Exécution N-1: BR1/2021\n","Budget initial\n(d)","Nouveau BR","Somme des BR\n(yc nouveau BR) (e)","TOTAL : dernier budget modifié\n(f) = (d) + (e)"]
[null,null,"AE","CP","AE","CP","AE","CP","AE","CP","AE","CP",null,"Montants","Montants","Montants","Montants","Montants"]
[null,"Personnel",172729.12,172729.12,262676,262676,null,null,null,null,{"$f":"E11+I11","v":262676},{"$f":"F11+J11","v":262676},null,{"$f":"SUM(N12:N16)","v":328904.68},{"$f":"SUM(O12:O16)","v":399000},{"$f":"SUM(P12:P16)","v":0},0,{"$f":"O11+Q11","v":399000},"Recettes globalisées"]
[null,"dont contributions employeur au CAS Pension",0,0,null,null,null,null,null,null,{"$f":"E12+I12","v":0},{"$f":"F12+J12","v":0},null,0,null,null,null,0,"Subvention pour charges de service public"]
[null,null,0,0,null,null,null,null,null,null,0,0,null,-20520.32,null,null,null,0,"Autres financements de l'Etat"]
[null,null,0,0,null,null,null,null,null,null,0,0,null,0,null,null,null,0,"Fiscalité affectée"]
[null,"Fonctionnement et intervention",172634.34,172634.34,238000,233000,null,null,null,null,238000,233000,null,10067,null,null,null,0,"Autres financements publics"]
[null,null,0,0,null,null,null,null,null,null,0,0,null,339358,399000,null,null,399000,"Recettes propres"]
[null,null,0,0,null,null,null,null,null,null,0,0]
[null,null,0,0,null,null,null,null,null,null,0,0,null,{"$f":"SUM(N19:N21)","v":0},{"$f":"SUM(O19:O21)","v":0},0,0,{"$f":"O18+Q18","v":0},"Recettes fléchées **"]
[null,null,0,0,null,null,null,null,null,null,0,0,null,null,null,null,null,0,"Financements de l'Etat fléchés"]
[null,"Investissement",8454,9001,19000,14000,null,null,null,null,19000,14000,null,null,null,null,null,0,"Autres financements publics fléchés"]
[null,null,null,null,null,null,null,null,null,null,0,0,null,null,null,null,null,0,"Recettes propres fléchées"]
[null,null,null,null,null,null,null,null,null,null,0,0]
[null,"Enveloppes* destinées à des contrats de recherche",null,null,null,null,{"$f":"G24+G25+G26","v":0},0,0,0,0,0]
[null,"Personnel",null,null,null,null,null,null,null,null,{"$f":"E24+I24","v":0},{"$f":"F24+J24","v":0}]
[null,"Fonctionnement",null,null,null,null,null,null,null,null,0,0]
[null,"Investissement",null,null,null,null,null,null,null,null,0,0]
[]
[null,"TOTAL DES DÉPENSES",{"$f":"C20+C15+C11+C23","v":353817.45999999996},{"$f":"D20+D15+D11+D23","v":354364.45999999996},{"$f":"E20+E15+E11+E23","v":519676},{"$f":"F20+F15+F11+F23","v":509676},0,0,0,0,519676,509676,null,{"$f":"N11+N18","v":328904.68},399000,{"$f":"P11+P18","v":0},{"$f":"Q11+Q18","v":0},{"$f":"R11+R18","v":399000},"TOTAL DES RECETTES"]
[]
[null,"Solde budgétaire (excédent)",null,{"$f":"IF(N28-D28>=0,N28-D28,0)","v":0},null,{"$f":"IF(O28-F28>=0,O28-F28,0)","v":0},null,{"$f":"IF(P28-H28>=0,P28-H28,0)","v":0},null,{"$f":"IF(Q28-J28>=0,Q28-J28,0)","v":0},null,{"$f":"IF(R28-L28>=0,R28-L28,0)","v":0},null,{"$f":"IF(D28-N28>0,D28-N28,0)","v":25459.77999999997},{"$f":"IF(F28-O28>0,F28-O28,0)","v":110676},{"$f":"IF(H28-P28>0,H28-P28,0)","v":0},{"$f":"IF(J28-Q28>0,J28-Q28,0)","v":0},{"$f":"IF(L28-R28>0,L28-R28,0)","v":110676},"Solde budgétaire (déficit)"]
[]
[null,"* Chaque enveloppe peut être détaillée en fonction des besoins des organismes.",null,null,{"$f":"IF('3-tab_destination_origine_Fonda'!C31=\"\",\"\",\"! Incohérence total Personnel AE avec Tab3 ETAB\")","v":""},{"$f":"IF('3-tab_destination_origine_Fonda'!D31=\"\",\"\",\"! Incohérence total Personnel CP avec Tab3 ETAB\")","v":""},null,{"$f":"IF(L24=\"\",IF(ROUND(D12,-1)<>ROUND('6-tab CR_TF_Fondation'!B10,-1),\"! Incohérence pensions civ. N-1 Tab6 ETAB\",\"\"),\"\")","v":""},{"$f":"IF('7-tab Plan_tréso_Fondation'!P30=\"\",\"\",\"! Incohérence total Personnel CP avec Tab7\")","v":""},null,{"$f":"IF(ROUND(K28,-1)=ROUND(#REF!+'2-tab_aut_budg_AGR'!K28,-1),\"\",\"! Pb agrégat dépenses AE\")","v":{"$error":"#REF!"}},{"$f":"IF(AND(CONTROLES_TAB3_3_ETAB=\"\",CONTROLES_TAB3_4_ETAB=\"\"),\"\",\"! Incohérence solde budgétaire Tab3 ETAB\")","v":""},null,{"$f":"IF('3-tab_destination_origine_Fonda'!C53=\"\",\"\",\"! Incohérence Subv charges serv public avec Tab3 ETAB\")","v":""},{"$f":"IF('3-tab_destination_origine_Fonda'!D53=\"\",\"\",\"! Incohérence Autres financ. Etat avec Tab3 ETAB\")","v":""},{"$f":"IF('7-tab Plan_tréso_Fondation'!P10=\"\",\"\",\"! Incohérence Subv service public Tab7\")","v":""},{"$f":"IF('7-tab Plan_tréso_Fondation'!P16=\"\",\"\",\"! Incohérence Financ Etat fléchés Tab7\")","v":""},{"$f":"IF(ROUND(R19,-1)<>ROUND(#REF!,-1),\"! Incohérence Financ. Etat fléchés avec Tab8 ETAB\",\"\")","v":{"$error":"#REF!"}}]
[null,"** Montant issu du tableau \"Opérations sur recettes fléchées\" (tableau 8)",null,null,{"$f":"IF('3-tab_destination_origine_Fonda'!E31=\"\",\"\",\"! Incohérence total Fonct AE avec Tab3 ETAB\")","v":""},{"$f":"IF('3-tab_destination_origine_Fonda'!F31=\"\",\"\",\"! Incohérence total Fonct CP avec Tab3 ETAB\")","v":""},null,{"$f":"IF(L24=\"\",IF(ROUND(F12,-1)<>ROUND('6-tab CR_TF_Fondation'!C10,-1),\"! Incohérence pensions civ. BI Tab6 ETAB\",\"\"),\"\")","v":""},{"$f":"IF('7-tab Plan_tréso_Fondation'!P31=\"\",\"\",\"! Incohérence total Fonct CP avec Tab 7\")","v":""},null,{"$f":"IF(ROUND(L28,-1)=ROUND(#REF!+'2-tab_aut_budg_AGR'!L28,-1),\"\",\"! Pb agrégat dépenses CP\")","v":{"$error":"#REF!"}},{"$f":"IF(COUNTA(CONTROLES_TAB4)-COUNTIF(CONTROLES_TAB4_1,\"\")-COUNTIF(CONTROLES_TAB4_2,\"\")=0,\"\",\"! Incohérence solde budgétaire avec tab4\")","v":""},null,{"$f":"IF('3-tab_destination_origine_Fonda'!E53=\"\",\"\",\"! Incohérence Fiscalité affectée avec Tab3 ETAB\")","v":""},{"$f":"IF('3-tab_destination_origine_Fonda'!F531=\"\",\"\",\"! Incohérence Autres financements publics avec Tab3 ETAB\")","v":""},{"$f":"IF('7-tab Plan_tréso_Fondation'!P11=\"\",\"\",\"! Incohérence Autres financ Etat Tab7\")","v":""},{"$f":"IF('7-tab Plan_tréso_Fondation'!P17=\"\",\"\",\"! Incohérence Autres financ fléchés Tab7\")","v":""},{"$f":"IF(ROUND(R20,-1)<>ROUND(#REF!,-1),\"! Incohérence Autres financ. publics fléchés avec Tab8 ETAB\",\"\")","v":{"$error":"#REF!"}}]
[null,null,null,null,{"$f":"IF('3-tab_destination_origine_Fonda'!G31=\"\",\"\",\"! Incohérence total Invest AE avec Tab3 ETAB\")","v":""},{"$f":"IF('3-tab_destination_origine_Fonda'!H31=\"\",\"\",\"! Incohérence total Invest CP avec Tab3 ETAB\")","v":""},null,{"$f":"IF(L24=\"\",IF(ROUND(H12,-1)<>ROUND('6-tab CR_TF_Fondation'!D10,-1),\"! Incohérence pensions civ. BR Tab6 ETAB\",\"\"),\"\")","v":""},{"$f":"IF('7-tab Plan_tréso_Fondation'!P33=\"\",\"\",\"! Incohérence total Invest. CP avec Tab 7\")","v":""},null,{"$f":"IF(ROUND(R28,-1)=ROUND(#REF!+'2-tab_aut_budg_AGR'!R28,-1),\"\",\"! Pb agrégat total recettes\")","v":{"$error":"#REF!"}},null,null,{"$f":"IF('3-tab_destination_origine_Fonda'!G53=\"\",\"\",\"! Incohérence Recettes propres avec Tab3 ETAB\")","v":""},{"$f":"IF('3-tab_destination_origine_Fonda'!H53=\"\",\"\",\"! Incohérence Financements Etat fléchés avec Tab3 ETAB\")","v":""},{"$f":"IF('7-tab Plan_tréso_Fondation'!P12=\"\",\"\",\"! Incohérence Fiscalité affectée Tab7\")","v":""},{"$f":"IF('7-tab Plan_tréso_Fondation'!P18=\"\",\"\",\"! Incohérence Recettes propres fléchées Tab7\")","v":""},{"$f":"IF(ROUND(R21,-1)<>ROUND(#REF!,-1),\"! Incohérence Recettes propres fléchées avec Tab8 ETAB\",\"\")","v":{"$error":"#REF!"}}]
[null,null,null,null,{"$f":"\"Exécution N-1 : Différence charges de personnel entre tableau 2 et tableau 6 est de : \"&'6-tab CR_TF_Fondation'!B9-ROUND('2-tab_aut_budg_Fondation'!D11+'2-tab_aut_budg_Fondation'!D24,-1)","v":"Exécution N-1 : Différence charges de personnel entre tableau 2 et tableau 6 est de : -1780"},null,null,{"$f":"IF(L24=\"\",IF(ROUND(J12,-1)<>ROUND('6-tab CR_TF_Fondation'!E10,-1),\"! Incohérence pensions civ. total BR Tab6 ETAB\",\"\"),\"\")","v":""},null,null,null,null,null,{"$f":"IF('3-tab_destination_origine_Fonda'!I53=\"\",\"\",\"! Incohérence Autres financ. fléchés avec Tab3 ETAB\")","v":""},{"$f":"IF('3-tab_destination_origine_Fonda'!J53=\"\",\"\",\"! Incohérence Recettes propres fléchées avec Tab3 ETAB\")","v":""},{"$f":"IF('7-tab Plan_tréso_Fondation'!P13=\"\",\"\",\"! Incohérence Autres financ publ Tab7\")","v":""}]
[null,null,null,null,{"$f":"\"BI : Différence charges de personnel entre tableau 2 et tableau 6 est de : \"&'6-tab CR_TF_Fondation'!C9-ROUND('2-tab_aut_budg_Fondation'!F11+'2-tab_aut_budg_Fondation'!F24,-1)","v":"BI : Différence charges de personnel entre tableau 2 et tableau 6 est de : -2809"},null,null,null,null,null,null,null,null,null,null,{"$f":"IF('7-tab Plan_tréso_Fondation'!P14=\"\",\"\",\"! Incohérence Recettes propres Tab7\")","v":""}]
[null,null,null,null,{"$f":"\"Budget BI+BR : Différence charges de personnel entre tableau 2 et tableau 6 est de : \"&'6-tab CR_TF_Fondation'!F9-ROUND('2-tab_aut_budg_Fondation'!L11+'2-tab_aut_budg_Fondation'!L24,-1)","v":"Budget BI+BR : Différence charges de personnel entre tableau 2 et tableau 6 est de : -2809"}]

{"sheet":"2-tab_aut_budg_AGR","index":6,"n_rows":37,"n_cols":19,"rows_kept":37,"cut":false,"hidden":true,"merged":[[0,1,0,18],[1,1,1,18],[7,1,7,11],[7,13,7,18],[8,2,8,3],[8,4,8,5],[8,6,8,7],[8,8,8,9],[8,10,8,11]]}
[null,"Tableau 2 - Université de Bretagne Sud (0561718N) : Etablissement principal + Fondation"]
[null,{"$f":"\"Autorisations budgétaires - Budget agrégé \"&Maquette!B4&\" \"&Maquette!B5&\" \"&Maquette!B3","v":"Autorisations budgétaires - Budget agrégé initial  2024"}]
[]
[]
[null,"POUR VOTE DE L'ORGANE DÉLIBÉRANT"]
[]
[]
[null,"Dépenses",null,null,null,null,null,null,null,null,null,null,null,"Recettes"]
[null,null,"Exécution N-1",null,"Budget initial\n(a)",null,"Nouveau BR",null,"Somme des BR\n(yc nouveau BR) (b)",null,"TOTAL : dernier budget modifié\n(c) = (a) + (b)",null,null,"Exécution N-1","Budget initial\n(d)","Nouveau BR","Somme des BR\n(yc nouveau BR) (e)","TOTAL : dernier budget modifié\n(f) = (d) + (e)"]
[null,null,"AE","CP","AE","CP","AE","CP","AE","CP","AE","CP",null,"Montants","Montants","Montants","Montants","Montants"]
[null,"Personnel",null,null,null,null,null,null,null,null,{"$f":"E11+I11","v":0},{"$f":"F11+J11","v":0},null,{"$f":"SUM(N12:N16)","v":0},{"$f":"SUM(O12:O16)","v":0},{"$f":"SUM(P12:P16)","v":0},0,{"$f":"O11+Q11","v":0},"Recettes globalisées"]
[null,"dont contributions employeur au CAS Pension",null,null,null,null,null,null,null,null,{"$f":"E12+I12","v":0},0,null,null,null,null,null,{"$f":"O12+Q12","v":0},"Subvention pour charges de service public"]
[null,null,null,null,null,null,null,null,null,null,0,0,null,null,null,null,null,0,"Autres financements de l'Etat"]
[null,null,null,null,null,null,null,null,null,null,0,0,null,null,null,null,null,0,"Fiscalité affectée"]
[null,"Fonctionnement et intervention",null,null,null,null,null,null,null,null,0,0,null,null,null,null,null,0,"Autres financements publics"]
[null,null,null,null,null,null,null,null,null,null,0,0,null,null,null,null,null,0,"Recettes propres"]
[null,null,null,null,null,null,null,null,null,null,0,0]
[null,null,null,null,null,null,null,null,null,null,0,0,null,{"$f":"SUM(N19:N21)","v":0},{"$f":"SUM(O19:O21)","v":0},0,0,0,"Recettes fléchées **"]
[null,null,null,null,null,null,null,null,null,null,0,0,null,null,null,null,null,0,"Financements de l'Etat fléchés"]
[null,"Investissement",null,null,null,null,null,null,null,null,0,0,null,null,null,null,null,0,"Autres financements publics fléchés"]
[null,null,null,null,null,null,null,null,null,null,0,0,null,null,null,null,null,0,"Recettes propres fléchées"]
[null,null,null,null,null,null,null,null,null,null,0,0]
[null,"Enveloppes* destinées à des contrats de recherche",{"$f":"C24+C25+C26","v":0},{"$f":"D24+D25+D26","v":0},{"$f":"E24+E25+E26","v":0},{"$f":"F24+F25+F26","v":0},0,0,0,0,0,0]
[null,"Personnel",null,null,null,null,null,null,null,null,0,0]
[null,"Fonctionnement",null,null,null,null,null,null,null,null,0,0]
[null,"Investissement",null,null,null,null,null,null,null,null,0,0]
[]
[null,"TOTAL DES DÉPENSES",{"$f":"C20+C15+C11+C23","v":0},{"$f":"D20+D15+D11+D23","v":0},{"$f":"E20+E15+E11+E23","v":0},{"$f":"F20+F15+F11+F23","v":0},0,0,0,0,0,0,null,{"$f":"N11+N18","v":0},0,{"$f":"P11+P18","v":0},{"$f":"Q11+Q18","v":0},{"$f":"R11+R18","v":0},"TOTAL DES RECETTES"]
[]
[null,"Solde budgétaire (excédent)",null,{"$f":"IF(N28-D28>=0,N28-D28,0)","v":0},null,{"$f":"IF(O28-F28>=0,O28-F28,0)","v":0},null,{"$f":"IF(P28-H28>=0,P28-H28,0)","v":0},null,{"$f":"IF(Q28-J28>=0,Q28-J28,0)","v":0},null,{"$f":"IF(R28-L28>=0,R28-L28,0)","v":0},null,{"$f":"IF(D28-N28>0,D28-N28,0)","v":0},{"$f":"IF(F28-O28>0,F28-O28,0)","v":0},{"$f":"IF(H28-P28>0,H28-P28,0)","v":0},{"$f":"IF(J28-Q28>0,J28-Q28,0)","v":0},{"$f":"IF(L28-R28>0,L28-R28,0)","v":0},"Solde budgétaire (déficit)"]
[]
[null,"* Chaque enveloppe peut être détaillée en fonction des besoins des organismes.",null,null,{"$f":"IF('3-tab_destination_origine_AGR'!C31=\"\",\"\",\"! Incohérence total Personnel AE avec Tab3 AGR\")","v":""},{"$f":"IF('3-tab_destination_origine_AGR'!D31=\"\",\"\",\"! Incohérence total Personnel CP avec Tab3 AGR\")","v":""},null,{"$f":"IF(L24=\"\",IF(ROUND(D12,-1)<>ROUND('6-tab CR_TF_AGR'!B10,-1),\"! Incohérence pensions civ. N-1 Tab6 AGR\",\"\"),\"\")","v":""},null,null,{"$f":"IF(ROUND(K28,-1)=ROUND(#REF!+#REF!,-1),\"\",\"! Pb agrégat dépenses AE\")","v":{"$error":"#REF!"}},{"$f":"IF(AND(CONTROLES_TAB3_3_AGR=\"\",CONTROLES_TAB3_4_AGR=\"\"),\"\",\"! Incohérence solde budgétaire Tab3 AGR\")","v":""},null,{"$f":"IF('3-tab_destination_origine_AGR'!C53=\"\",\"\",\"! Incohérence Subv charges serv public avec Tab3 AGR\")","v":""},{"$f":"IF('3-tab_destination_origine_AGR'!D53=\"\",\"\",\"! Incohérence Autres financ. Etat avec Tab3 AGR\")","v":""},null,null,{"$f":"IF(ROUND(R19,-1)<>ROUND('8-tab recettes_fléchées_AGR'!D13,-1),\"! Incohérence Financ. Etat fléchés avec Tab8 AGR\",\"\")","v":""}]
[null,"** Montant issu du tableau \"Opérations sur recettes fléchées\" (tableau 8)",null,null,{"$f":"IF('3-tab_destination_origine_AGR'!E31=\"\",\"\",\"! Incohérence total Fonct AE avec Tab3 AGR\")","v":""},{"$f":"IF('3-tab_destination_origine_AGR'!F31=\"\",\"\",\"! Incohérence total Fonct CP avec Tab3 AGR\")","v":""},null,{"$f":"IF(L24=\"\",IF(ROUND(F12,-1)<>ROUND('6-tab CR_TF_AGR'!C10,-1),\"! Incohérence pensions civ. BI Tab6 AGR\",\"\"),\"\")","v":""},null,null,{"$f":"IF(ROUND(L28,-1)=ROUND(#REF!+#REF!,-1),\"\",\"! Pb agrégat dépenses CP\")","v":{"$error":"#REF!"}},null,null,{"$f":"IF('3-tab_destination_origine_AGR'!E53=\"\",\"\",\"! Incohérence Fiscalité affectée avec Tab3 AGR\")","v":""},{"$f":"IF('3-tab_destination_origine_AGR'!F531=\"\",\"\",\"! Incohérence Autres financements publics avec Tab3 AGR\")","v":""},null,null,{"$f":"IF(ROUND(R20,-1)<>ROUND('8-tab recettes_fléchées_AGR'!D14,-1),\"! Incohérence Autres financ. publics fléchés avec Tab8 AGR\",\"\")","v":""}]
[null,null,null,null,{"$f":"IF('3-tab_destination_origine_AGR'!G31=\"\",\"\",\"! Incohérence total Invest AE avec Tab3 AGR\")","v":""},{"$f":"IF('3-tab_destination_origine_AGR'!H31=\"\",\"\",\"! Incohérence total Invest CP avec Tab3 AGR\")","v":""},null,{"$f":"IF(L24=\"\",IF(ROUND(H12,-1)<>ROUND('6-tab CR_TF_AGR'!D10,-1),\"! Incohérence pensions civ. BR Tab6 AGR\",\"\"),\"\")","v":""},null,null,{"$f":"IF(ROUND(R28,-1)=ROUND(#REF!+#REF!,-1),\"\",\"! Pb agrégat total recettes\")","v":{"$error":"#REF!"}},null,null,{"$f":"IF('3-tab_destination_origine_AGR'!G53=\"\",\"\",\"! Incohérence Recettes propres avec Tab3 AGR\")","v":""},{"$f":"IF('3-tab_destination_origine_AGR'!H53=\"\",\"\",\"! Incohérence Financements Etat fléchés avec Tab3 AGR\")","v":""},null,null,{"$f":"IF(ROUND(R21,-1)<>ROUND('8-tab recettes_fléchées_AGR'!D15,-1),\"! Incohérence Recettes propres fléchées avec Tab8 AGR\",\"\")","v":""}]
[null,null,null,null,{"$f":"\"Exécution N-1 : Différence charges de personnel entre tableau 2 et tableau 6 est de : \"&'6-tab CR_TF_AGR'!B9-ROUND('2-tab_aut_budg_AGR'!D11+'2-tab_aut_budg_AGR'!D24,-1)","v":{"$error":"#REF!"}},null,null,{"$f":"IF(L24=\"\",IF(ROUND(J12,-1)<>ROUND('6-tab CR_TF_AGR'!E10,-1),\"! Incohérence pensions civ. total BR Tab6 AGR\",\"\"),\"\")","v":""},null,null,null,null,null,{"$f":"IF('3-tab_destination_origine_AGR'!I53=\"\",\"\",\"! Incohérence Autres financ. fléchés avec Tab3 AGR\")","v":""},{"$f":"IF('3-tab_destination_origine_AGR'!J53=\"\",\"\",\"! Incohérence Recettes propres fléchées avec Tab3 AGR\")","v":""}]
[null,null,null,null,{"$f":"\"BI : Différence charges de personnel entre tableau 2 et tableau 6 est de : \"&'6-tab CR_TF_AGR'!C9-ROUND('2-tab_aut_budg_AGR'!F11+'2-tab_aut_budg_AGR'!F24,-1)","v":{"$error":"#REF!"}}]
[null,null,null,null,{"$f":"\"Budget BI+BR : Différence charges de personnel entre tableau 2 et tableau 6 est de : \"&'6-tab CR_TF_AGR'!F9-ROUND('2-tab_aut_budg_AGR'!L11+'2-tab_aut_budg_AGR'!L24,-1)","v":{"$error":"#REF!"}}]

{"sheet":"3-tab_destination_origine_Fonda","index":7,"n_rows":54,"n_cols":13,"rows_kept":54,"cut":false,"hidden":false,"merged":[[29,2,29,3],[0,1,0,11],[1,1,1,11],[5,1,7,1],[5,2,5,9],[6,2,6,3],[6,4,6,5],[6,6,6,7],[6,8,6,9],[7,2,7,3],[3,1,3,9],[33,1,35,1],[33,2,33,10],[34,2,34,6],[34,7,34,9],[34,10,35,10]]}
[null,"Tableau 3 - Université de Bretagne Sud (0561718N) : Fondation"]
[null,{"$f":"\"Dépenses par destination et recettes par origine - Budget consolidé \"&Maquette!B4&\" \"&Maquette!B5&\" \"&Maquette!B3","v":"Dépenses par destination et recettes par origine - Budget consolidé initial  2024"}]
[]
[null,"POUR INFORMATION DE L'ORGANE DÉLIBÉRANT"]
[null,"Tableau des dépenses par destination (obligatoire)"]
[null,"Budget","Dépenses de l’organisme"]
[null,null,"Personnel",null,"Fonctionnement et intervention",null,"Investissement",null,"Total"]
[null,null,"AE = CP",null,"AE","CP","AE","CP","AE","CP"]
[null,"Formation initiale et continue (d) = (a) + (b) + (c)",{"$f":"SUM(C10:C12)","v":36000},{"$f":"SUM(D10:D12)","v":36000},0,0,0,0,{"$f":"C9+E9+G9","v":36000},{"$f":"D9+F9+H9","v":36000}]
[null,"D101 - Formation initiale et continue de niveau Licence (a)",null,null,null,null,null,null,{"$f":"C10+E10+G10","v":0},{"$f":"D10+F10+H10","v":0}]
[null,"D102 - Formation initiale et continue de niveau Master (b)",null,null,null,null,null,null,0,0]
[null,"D103 - Formation initiale et continue de niveau Doctorat (c) ",36000,36000,null,null,null,null,36000,36000]
[null,"D105 - Bibliothèques et documentation",null,null,null,null,null,null,0,0]
[null,"D106 - Recherche universitaire en sciences de la vie, biotechnologie et santé",null,null,null,null,null,null,0,0]
[null,"D107 -  Recherche universitaire en mathématiques, sciences et techniques de l'information et de la communication, micro et nanotechnologies",90000,90000,110000,110000,8000,8000,208000,208000]
[null,"D108 -  Recherche universitaire en physique, chimie et sciences pour l'ingénieur",65000,65000,35000,35000,null,null,100000,100000]
[null,"D109 -  Recherche universitaire en physique nucléaire et des hautes énergies",null,null,null,null,null,null,0,0]
[null,"D110 -  Recherche universitaire en sciences de la terre, de l'univers et de l'environnement",null,null,null,null,null,null,0,0]
[null,"D111 -  Recherche universitaire en sciences de l'homme et de la société",null,null,null,null,null,null,0,0]
[null,"D112 -  Recherche universitaire interdisciplinaire et transversale",null,null,null,null,null,null,0,0]
[null,"D113 -  Diffusion des savoirs et musées",null,null,null,null,null,null,0,0]
[null,"D114 - Immobilier",null,null,null,null,null,null,0,0]
[null,"D115 - Pilotage et support",71676,71676,93000,88000,11000,6000,175676,165676]
[null,"Étudiants (h) = (e) + (f) + (g)",{"$f":"SUM(C25:C27)","v":0},{"$f":"SUM(D25:D27)","v":0},0,0,0,0,0,0]
[null,"D201 - Aides directes aux étudiants (e)",null,null,null,null,null,null,0,0]
[null,"D202 - Aides indirectes (f)",null,null,null,null,null,null,0,0]
[null,"D203 - Santé des étudiants et activités associatives, culturelles et sportives (g)",null,null,null,null,null,null,0,0]
[null,"Total",{"$f":"SUM(C10:C24)","v":262676},{"$f":"SUM(D10:D24)","v":262676},238000,233000,19000,14000,{"$f":"C28+E28+G28","v":519676},{"$f":"D28+F28+H28","v":509676}]
[]
[null,null,{"$f":"IF(SUM(C9:C28)<>SUM(D9:D28),\"! Dépenses de personnel AE <> CP\",\"\")","v":""},null,null,null,null,"SOLDE BUDGETAIRE (excédent)",null,{"$f":"IF(K50>J28,K50-J28,0)","v":0},{"$f":"IF(ROUND(J30,-1)<>ROUND('2-tab_aut_budg_Fondation'!L30,-1),\"Incohérence solde budgétaire avec Tab2 ETAB\",\"\")","v":""},{"$f":"IF(ROUND(J30,-1)<>ROUND('4-tab_financier_Fondation'!M11,-1),\"! Incohérence solde budgétaire avec Tab4\",\"\")","v":""}]
[null,null,{"$f":"IF(ROUND(C28,-1)<>ROUND('2-tab_aut_budg_Fondation'!K11+'2-tab_aut_budg_Fondation'!K24,-1),\"! Incohérence total Personnel AE avec Tab2 ETAB\",\"\")","v":""},{"$f":"IF(ROUND(D28,-1)<>ROUND('2-tab_aut_budg_Fondation'!L11+'2-tab_aut_budg_Fondation'!L24,-1),\"! Incohérence total Personnel CP avec Tab2 ETAB\",\"\")","v":""},{"$f":"IF(ROUND(E28,-1)<>ROUND('2-tab_aut_budg_Fondation'!K15+'2-tab_aut_budg_Fondation'!K25,-1),\"! Incohérence total Fonctionnement AE avec Tab2 ETAB\",\"\")","v":""},{"$f":"IF(ROUND(F28,-1)<>ROUND('2-tab_aut_budg_Fondation'!L15+'2-tab_aut_budg_Fondation'!L25,-1),\"! Incohérence total Fonctionnement CP avec Tab2 ETAB\",\"\")","v":""},{"$f":"IF(ROUND(G28,-1)<>ROUND('2-tab_aut_budg_Fondation'!K20+'2-tab_aut_budg_Fondation'!K26,-1),\"! Incohérence total Investissement AE avec Tab2 ETAB\",\"\")","v":""},{"$f":"IF(ROUND(H28,-1)<>ROUND('2-tab_aut_budg_Fondation'!L20+'2-tab_aut_budg_Fondation'!L26,-1),\"! Incohérence total Investissement CP avec Tab2 ETAB\",\"\")","v":""},{"$f":"IF(ROUND(I28,-1)<>ROUND('2-tab_aut_budg_Fondation'!K28,-1),\"! Incohérence Total dépenses AE avec Tab2 ETAB\",\"\")","v":""},{"$f":"IF(ROUND(J28,-1)<>ROUND('2-tab_aut_budg_Fondation'!L28,-1),\"! Incohérence Total dépenses CP avec Tab2 ETAB\",\"\")","v":""}]
[null,"Tableau des recettes par origine (obligatoire)"]
[]
[null,"Budget","Recettes de l'organisme"]
[null,null,"Recettes globalisées",null,null,null,null,"Recettes fléchées",null,null,"Total"]
[null,null,"Subvention pour charges de service public","Autres financements de l'Etat","Fiscalité affectée","Autres financements publics","Recettes propres","Financements de l'Etat fléchés","Autres financements publics fléchés","Recettes propres fléchées"]
[null,"Subvention pour charges de service public",null,null,null,null,null,0,0,0,{"$f":"C37","v":0}]
[null,"Droits d'inscription",null,null,null,null,null,0,0,0,{"$f":"SUM(G38:J38)","v":0}]
[null,"Formation continue, diplômes propres et VAE",null,null,null,null,null,0,0,0,{"$f":"SUM(G39:J39)","v":0}]
[null,"Taxe d'apprentissage",null,null,null,null,null,0,0,0,{"$f":"SUM(G40:J40)","v":0}]
[null,"Contrats et prestations de recherche hors ANR",null,null,null,null,null,0,0,0,{"$f":"SUM(G41:J41)","v":0}]
[null,"Valorisation",null,null,null,null,null,0,0,0,{"$f":"SUM(G42:J42)","v":0}]
[null,"ANR investissements d'avenir",null,null,null,null,null,0,0,0,{"$f":"SUM(F43,H43:J43)","v":0}]
[null,"ANR hors investissements d'avenir",null,null,null,null,null,0,0,0,{"$f":"SUM(F44,H44:J44)","v":0}]
[null,"Subventions d'exploitation et financement des actifs - Région",null,null,null,null,null,0,0,0,{"$f":"SUM(F45,H45:J45)","v":0}]
[null,"Subventions d'exploitation et financement des actifs - Union Européenne",null,null,null,null,null,0,0,0,{"$f":"SUM(F46,H46:J46)","v":0}]
[null,"Subventions d'exploitation et financement des actifs - Autres",null,null,null,null,null,0,0,0,{"$f":"SUM(D47,F47:J47)","v":0}]
[null,"Fondations - fonds propres, réserves, dons et legs",null,null,null,null,null,0,0,0,{"$f":"SUM(D48,F48:J48)","v":0}]
[null,"Autres recettes",null,null,null,null,399000,0,0,0,{"$f":"SUM(E49:J49)","v":399000}]
[null,"Total",{"$f":"C37","v":0},{"$f":"SUM(D47:D48)","v":0},{"$f":"E49","v":0},{"$f":"SUM(F43:F49)","v":0},{"$f":"SUM(G38:G42,G47:G49)","v":399000},{"$f":"SUM(H38:H49)","v":0},{"$f":"SUM(I38:I49)","v":0},0,{"$f":"SUM(K37:K49)","v":399000}]
[]
[null,"La liste des destination est susceptible d'être modifiée par le ministre chargé de l'enseignement supérieur",null,null,null,null,null,null,"SOLDE BUDGETAIRE (déficit)",null,{"$f":"IF(J28>K50,J28-K50,0)","v":110676},{"$f":"IF(ROUND(K52,-1)<>ROUND('2-tab_aut_budg_Fondation'!R30,-1),\"! Incohérence solde budgétaire avec Tab2 ETAB\",\"\")","v":""},{"$f":"IF(ROUND(K52,-1)<>ROUND('4-tab_financier_Fondation'!G11,-1),\"! Incohérence solde budgétaire avec Tab4\",\"\")","v":""}]
[null,null,{"$f":"IF(ROUND(C50,-1)<>ROUND('2-tab_aut_budg_Fondation'!R12,-1),\"! Incohérence total Subv charges serv public avec Tab2 ETAB\",\"\")","v":""},{"$f":"IF(ROUND(D50,-1)<>ROUND('2-tab_aut_budg_Fondation'!R13,-1),\"! Incohérence total Autres financements Etat avec Tab2 ETAB\",\"\")","v":""},{"$f":"IF(ROUND(E50,-1)<>ROUND('2-tab_aut_budg_Fondation'!R14,-1),\"! Incohérence total Fiscalité affectée avec Tab2 ETAB\",\"\")","v":""},{"$f":"IF(ROUND(F50,-1)<>ROUND('2-tab_aut_budg_Fondation'!R15,-1),\"! Incohérence total Autres financements publics avec Tab2 ETAB\",\"\")","v":""},{"$f":"IF(ROUND(G50,-1)<>ROUND('2-tab_aut_budg_Fondation'!R16,-1),\"! Incohérence total Recettes propres avec Tab2 ETAB\",\"\")","v":""},{"$f":"IF(ROUND(H50,-1)<>ROUND('2-tab_aut_budg_Fondation'!R19,-1),\"! Incohérence total Financements Etat fléchés avec Tab2 ETAB\",\"\")","v":""},{"$f":"IF(ROUND(I50,-1)<>ROUND('2-tab_aut_budg_Fondation'!R20,-1),\"! Incohérence total Autres financements fléchés avec Tab2 ETAB\",\"\")","v":""},{"$f":"IF(ROUND(J50,-1)<>ROUND('2-tab_aut_budg_Fondation'!R21,-1),\"! Incohérence total Recettes propres fléchées avec Tab2 ETAB\",\"\")","v":""},{"$f":"IF(ROUND(K50,-1)<>ROUND('2-tab_aut_budg_Fondation'!R28,-1),\"! Incohérence total avec Tab2 ETAB\",\"\")","v":""}]
[null,null,null,null,null,null,null,{"$f":"IF(H50<>#REF!,\"! Incohérence Financements Etat fléchés avec Tab8 ETAB\",\"\")","v":{"$error":"#REF!"}},{"$f":"IF(ROUND(I50,-1)<>ROUND(#REF!,-1),\"! Incohérence Autres financements fléchés avec Tab8 ETAB\",\"\")","v":{"$error":"#REF!"}},{"$f":"IF(ROUND(J50,-1)<>ROUND(#REF!,-1),\"! Incohérences Recettes propres fléchées avec Tab8 ETAB \",\"\")","v":{"$error":"#REF!"}}]

{"sheet":"3-tab_destination_origine_AGR","index":8,"n_rows":54,"n_cols":12,"rows_kept":54,"cut":false,"hidden":true,"merged":[[29,2,29,3],[33,1,35,1],[33,2,33,10],[34,2,34,6],[34,7,34,9],[34,10,35,10],[0,1,0,11],[1,1,1,11],[3,1,3,9],[5,1,7,1],[5,2,5,9],[6,2,6,3],[6,4,6,5],[6,6,6,7],[6,8,6,9],[7,2,7,3]]}
[null,"Tableau 3 - Université de Bretagne Sud (0561718N) : Etablissement principal + Fondation"]
[null,{"$f":"\"Dépenses par destination et recettes par origine - Budget agrégé \"&Maquette!B4&\" \"&Maquette!B5&\" \"&Maquette!B3","v":"Dépenses par destination et recettes par origine - Budget agrégé initial  2024"}]
[]
[null,"POUR INFORMATION DE L'ORGANE DÉLIBÉRANT"]
[null,"Tableau des dépenses par destination (obligatoire)"]
[null,"Budget","Dépenses de l’organisme"]
[null,null,"Personnel",null,"Fonctionnement et intervention",null,"Investissement",null,"Total"]
[null,null,"AE = CP",null,"AE","CP","AE","CP","AE","CP"]
[null,"Formation initiale et continue (d) = (a) + (b) + (c)",{"$f":"SUM(C10:C12)","v":0},{"$f":"SUM(D10:D12)","v":0},0,0,0,0,{"$f":"C9+E9+G9","v":0},{"$f":"D9+F9+H9","v":0}]
[null,"D101 - Formation initiale et continue de niveau Licence (a)",null,null,null,null,null,null,{"$f":"C10+E10+G10","v":0},0]
[null,"D102 - Formation initiale et continue de niveau Master (b)",null,null,null,null,null,null,0,0]
[null,"D103 - Formation initiale et continue de niveau Doctorat (c) ",null,null,null,null,null,null,0,0]
[null,"D105 - Bibliothèques et documentation",null,null,null,null,null,null,0,0]
[null,"D106 - Recherche universitaire en sciences de la vie, biotechnologie et santé",null,null,null,null,null,null,0,0]
[null,"D107 -  Recherche universitaire en mathématiques, sciences et techniques de l'information et de la communication, micro et nanotechnologies",null,null,null,null,null,null,0,0]
[null,"D108 -  Recherche universitaire en physique, chimie et sciences pour l'ingénieur",null,null,null,null,null,null,0,0]
[null,"D109 -  Recherche universitaire en physique nucléaire et des hautes énergies",null,null,null,null,null,null,0,0]
[null,"D110 -  Recherche universitaire en sciences de la terre, de l'univers et de l'environnement",null,null,null,null,null,null,0,0]
[null,"D111 -  Recherche universitaire en sciences de l'homme et de la société",null,null,null,null,null,null,0,0]
[null,"D112 -  Recherche universitaire interdisciplinaire et transversale",null,null,null,null,null,null,0,0]
[null,"D113 -  Diffusion des savoirs et musées",null,null,null,null,null,null,0,0]
[null,"D114 - Immobilier",null,null,null,null,null,null,0,0]
[null,"D115 - Pilotage et support",null,null,null,null,null,null,0,0]
[null,"Étudiants (h) = (e) + (f) + (g)",{"$f":"SUM(C25:C27)","v":0},{"$f":"SUM(D25:D27)","v":0},0,0,0,0,0,0]
[null,"D201 - Aides directes aux étudiants (e)",null,null,null,null,null,null,0,0]
[null,"D202 - Aides indirectes (f)",null,null,null,null,null,null,0,0]
[null,"D203 - Santé des étudiants et activités associatives, culturelles et sportives (g)",null,null,null,null,null,null,0,0]
[null,"Total",{"$f":"SUM(C10:C24)","v":0},{"$f":"SUM(D10:D24)","v":0},0,0,0,0,{"$f":"C28+E28+G28","v":0},{"$f":"D28+F28+H28","v":0}]
[]
[null,null,{"$f":"IF(SUM(C9:C28)<>SUM(D9:D28),\"! Dépenses de personnel AE <> CP\",\"\")","v":""},null,null,null,null,"SOLDE BUDGETAIRE (excédent)",null,{"$f":"IF(K50>J28,K50-J28,0)","v":0},{"$f":"IF(ROUND(J30,-1)<>ROUND('2-tab_aut_budg_AGR'!L30,-1),\"Incohérence solde budgétaire avec Tab2 AGR\",\"\")","v":""}]
[null,null,{"$f":"IF(ROUND(C28,-1)<>ROUND('2-tab_aut_budg_AGR'!K11+'2-tab_aut_budg_AGR'!K24,-1),\"! Incohérence total Personnel AE avec Tab2 AGR\",\"\")","v":""},{"$f":"IF(ROUND(D28,-1)<>ROUND('2-tab_aut_budg_AGR'!L11+'2-tab_aut_budg_AGR'!L24,-1),\"! Incohérence total Personnel CP avec Tab2 AGR\",\"\")","v":""},{"$f":"IF(ROUND(E28,-1)<>ROUND('2-tab_aut_budg_AGR'!K15+'2-tab_aut_budg_AGR'!K25,-1),\"! Incohérence total Fonctionnement AE avec Tab2 AGR\",\"\")","v":""},{"$f":"IF(ROUND(F28,-1)<>ROUND('2-tab_aut_budg_AGR'!L15+'2-tab_aut_budg_AGR'!L25,-1),\"! Incohérence total Fonctionnement CP avec Tab2 AGR\",\"\")","v":""},{"$f":"IF(ROUND(G28,-1)<>ROUND('2-tab_aut_budg_AGR'!K20+'2-tab_aut_budg_AGR'!K26,-1),\"! Incohérence total Investissement AE avec Tab2 AGR\",\"\")","v":""},{"$f":"IF(ROUND(H28,-1)<>ROUND('2-tab_aut_budg_AGR'!L20+'2-tab_aut_budg_AGR'!L26,-1),\"! Incohérence total Investissement CP avec Tab2 AGR\",\"\")","v":""},{"$f":"IF(ROUND(I28,-1)<>ROUND('2-tab_aut_budg_AGR'!K28,-1),\"! Incohérence Total dépenses AE avec Tab2 AGR\",\"\")","v":""},{"$f":"IF(ROUND(J28,-1)<>ROUND('2-tab_aut_budg_AGR'!L28,-1),\"! Incohérence Total dépenses CP avec Tab2 AGR\",\"\")","v":""}]
[null,"Tableau des recettes par origine (obligatoire)"]
[]
[null,"Budget","Recettes de l'organisme"]
[null,null,"Recettes globalisées",null,null,null,null,"Recettes fléchées",null,null,"Total"]
[null,null,"Subvention pour charges de service public","Autres financements de l'Etat","Fiscalité affectée","Autres financements publics","Recettes propres","Financements de l'Etat fléchés","Autres financements publics fléchés","Recettes propres fléchées"]
[null,"Subvention pour charges de service public",null,null,null,null,null,null,null,null,{"$f":"C37","v":0}]
[null,"Droits d'inscription",null,null,null,null,null,null,null,null,{"$f":"SUM(G38:J38)","v":0}]
[null,"Formation continue, diplômes propres et VAE",null,null,null,null,null,null,null,null,{"$f":"SUM(G39:J39)","v":0}]
[null,"Taxe d'apprentissage",null,null,null,null,null,null,null,null,0]
[null,"Contrats et prestations de recherche hors ANR",null,null,null,null,null,null,null,null,0]
[null,"Valorisation",null,null,null,null,null,null,null,null,0]
[null,"ANR investissements d'avenir",null,null,null,null,null,null,null,null,{"$f":"SUM(F43,H43:J43)","v":0}]
[null,"ANR hors investissements d'avenir",null,null,null,null,null,null,null,null,{"$f":"SUM(F44,H44:J44)","v":0}]
[null,"Subventions d'exploitation et financement des actifs - Région",null,null,null,null,null,null,null,null,0]
[null,"Subventions d'exploitation et financement des actifs - Union Européenne",null,null,null,null,null,null,null,null,0]
[null,"Subventions d'exploitation et financement des actifs - Autres",null,null,null,null,null,null,null,null,{"$f":"SUM(D47,F47:J47)","v":0}]
[null,"Fondations - fonds propres, réserves, dons et legs",null,null,null,null,null,null,null,null,{"$f":"SUM(D48,F48:J48)","v":0}]
[null,"Autres recettes",null,null,null,null,null,null,null,null,{"$f":"SUM(F49:J49)","v":0}]
[null,"Total",{"$f":"C37","v":0},{"$f":"SUM(D47:D48)","v":0},{"$f":"SUM(E47:E48)","v":0},{"$f":"SUM(F43:F49)","v":0},{"$f":"SUM(G38:G42,G47:G49)","v":0},{"$f":"SUM(H38:H49)","v":0},{"$f":"SUM(I38:I49)","v":0},0,{"$f":"SUM(K37:K49)","v":0}]
[]
[null,"La liste des destination est susceptible d'être modifiée par le ministre chargé de l'enseignement supérieur",null,null,null,null,null,null,"SOLDE BUDGETAIRE (déficit)",null,{"$f":"IF(J28>K50,J28-K50,0)","v":0},{"$f":"IF(ROUND(K52,-1)<>ROUND('2-tab_aut_budg_AGR'!R30,-1),\"! Incohérence solde budgétaire avec Tab2 AGR\",\"\")","v":""}]
[null,null,{"$f":"IF(ROUND(C50,-1)<>ROUND('2-tab_aut_budg_AGR'!R12,-1),\"! Incohérence total Subv charges serv public avec Tab2 AGR\",\"\")","v":""},{"$f":"IF(ROUND(D50,-1)<>ROUND('2-tab_aut_budg_AGR'!R13,-1),\"! Incohérence total Autres financements Etat avec Tab2 AGR\",\"\")","v":""},{"$f":"IF(ROUND(E50,-1)<>ROUND('2-tab_aut_budg_AGR'!R14,-1),\"! Incohérence total Fiscalité affectée avec Tab2 AGR\",\"\")","v":""},{"$f":"IF(ROUND(F50,-1)<>ROUND('2-tab_aut_budg_AGR'!R15,-1),\"! Incohérence total Autres financements publics avec Tab2 AGR\",\"\")","v":""},{"$f":"IF(ROUND(G50,-1)<>ROUND('2-tab_aut_budg_AGR'!R16,-1),\"! Incohérence total Recettes propres avec Tab2 AGR\",\"\")","v":""},{"$f":"IF(ROUND(H50,-1)<>ROUND('2-tab_aut_budg_AGR'!R19,-1),\"! Incohérence total Financements Etat fléchés avec Tab2 AGR\",\"\")","v":""},{"$f":"IF(ROUND(I50,-1)<>ROUND('2-tab_aut_budg_AGR'!R20,-1),\"! Incohérence total Autres financements fléchés avec Tab2 AGR\",\"\")","v":""},{"$f":"IF(ROUND(J50,-1)<>ROUND('2-tab_aut_budg_AGR'!R21,-1),\"! Incohérence total Recettes propres fléchées avec Tab2 AGR\",\"\")","v":""},{"$f":"IF(ROUND(K50,-1)<>ROUND('2-tab_aut_budg_AGR'!R28,-1),\"! Incohérence total avec Tab2 AGR\",\"\")","v":""}]
[null,null,null,null,null,null,null,{"$f":"IF(H50<>#REF!,\"! Incohérence Financements Etat fléchés avec Tab8 ETAB\",\"\")","v":{"$error":"#REF!"}},{"$f":"IF(ROUND(I50,-1)<>ROUND('8-tab recettes_fléchées_AGR'!D14,-1),\"! Incohérence Autres financements fléchés avec Tab8 AGR\",\"\")","v":""},{"$f":"IF(ROUND(J50,-1)<>ROUND('8-tab recettes_fléchées_AGR'!D15,-1),\"! Incohérences Recettes propres fléchées avec Tab8 AGR \",\"\")","v":""}]

{"sheet":"4-tab_financier_Fondation","index":9,"n_rows":41,"n_cols":18,"rows_kept":41,"cut":false,"hidden":false,"merged":[[0,1,0,11],[1,1,1,11],[12,15,13,15],[8,1,8,6],[8,8,8,13],[4,1,4,13],[19,15,20,15],[23,15,23,17],[28,15,29,15],[25,17,29,17],[10,17,21,17]]}
[null,"Tableau 4 - Université de Bretagne Sud (0561718N) :  Fondation "]
[null,{"$f":"\"Équilibre financier - Budget consolidé \"&Maquette!B4&\" \"&Maquette!B5&\" \"&Maquette!B3","v":"Équilibre financier - Budget consolidé initial  2024"}]
[]
[]
[null,"POUR VOTE DE L'ORGANE DÉLIBÉRANT"]
[]
[]
[]
[null,"Besoins (utilisation des financements)",null,null,null,null,null,null,"Financements (couverture des besoins)"]
[null,null,"Exécution N-1: BR2/2023","Budget initial\n(a)","Nouveau BR","Somme des BR\n(yc nouveau BR) (b)","TOTAL : dernier budget modifié\n(c) = (a) + (b)",null,"Exécution N-1: BR2/2023","Budget initial\n(d)","Nouveau BR","Somme des BR\n(yc nouveau BR) (e)","TOTAL : dernier budget modifié\n(f) = (d) + (e)"]
[null,"Solde budgétaire (déficit) * (D2)",25460,{"$f":"'2-tab_aut_budg_Fondation'!O30","v":110676},null,null,{"$f":"IF(SUM(J11,L11)-SUM(D11,F11)<0,-(SUM(J11,L11)-SUM(D11,F11)),0)","v":110676},null,null,null,null,null,{"$f":"IF(SUM(J11,L11)-SUM(D11,F11)>=0,SUM(J11,L11)-SUM(D11,F11),0)","v":0},"Solde budgétaire (excédent) * (D1)",null,null,null,"Opérations ayant un impact sur la trésorerie"]
[null,"dont solde budgétaire budget principal",null,null,null,null,{"$f":"D12+F12","v":0},null,null,null,null,null,{"$f":"IF(SUM(J12,L12)-SUM(D12,F12)>=0,SUM(J12,L12)-SUM(D12,F12),0)","v":0},"dont solde budgétaire budget principal"]
[null,"dont solde budgétaire budget du SAIC",null,null,null,null,0,null,null,null,null,null,0,"dont solde budgétaire budget du SAIC",null,"Opérations budgétaires"]
[null,"dont solde budgétaire FU",25460,{"$f":"D11","v":110676},null,null,110676,null,null,null,null,null,0,"dont solde budgétaire FU"]
[null,"dont solde budgétaire BAI",null,null,null,null,0,null,null,null,null,null,0,"dont solde budgétaire BAI"]
[null,"dont solde budgétaire SIE",null,null,null,null,0,null,null,null,null,null,0,"dont solde budgétaire SIE"]
[null,null,null,null,null,null,0,null,null,null,null,null,{"$f":"J17+L17","v":0}]
[null,"Remboursements d'emprunts (capital) ;\nNouveaux prêts (capital) ;\nDépôts et cautionnements (b1)",null,null,null,null,0,null,null,null,null,null,0,"Nouveaux emprunts (capital) ;\nRemboursements de prêts (capital) ;\nDépôts et cautionnements (b2)"]
[null,null,null,null,null,null,0,null,null,null,null,null,0]
[null,"Opérations au nom et pour le compte de tiers **\n(décaissements de l’exercice) (c1)",0,0,null,null,0,null,0,0,null,null,0,"Opérations au nom et pour le compte de tiers **\n(encaissements de l’exercice) (c2)",null,"Opérations non budgétaires",{"$f":"J20-D20","v":0}]
[null,null,null,null,null,null,0,null,null,null,null,null,0]
[null,"Autres décaissements sur comptes de tiers\n(non budgétaires) (e1)",null,0,null,null,0,null,null,0,null,null,0,"Autres encaissements sur comptes de tiers\n(non budgétaires) (e2)"]
[null,null,null,null,null,null,0,null,null,null,null,null,0]
[null,"Sous-total des opérations ayant un impact négatif sur la trésorerie de l'organisme (1= D2+b1+c1+e1)",{"$f":"C11+C18+C20+C22","v":25460},{"$f":"D11+D18+D20+D22","v":110676},{"$f":"E11+E18+E20+E22","v":0},{"$f":"F11+F18+F20+F22","v":0},{"$f":"G11+G18+G20+G22","v":110676},"et",{"$f":"I11+I18+I20+I22","v":0},{"$f":"J11+J18+J20+J22","v":0},{"$f":"K11+K18+K20+K22","v":0},{"$f":"L11+L18+L20+L22","v":0},{"$f":"M11+M18+M20+M22","v":0},"Sous-total des opérations ayant un impact positif sur la trésorerie de l'organisme (2=D1+b2+c2+e2)",null,"La variation de trésorerie :\n- se détermine par différence entre (1) et (2),\n- se décompose en (a) et (d),\n- s'explique par D, (b), (c), (e)."]
[null,"Variation de trésorerie (I)",{"$f":"IF(I24-C24>0,I24-C24,)","v":0},{"$f":"IF(J24-D24>0,J24-D24,)","v":0},{"$f":"IF(K24-E24>0,K24-E24,)","v":0},{"$f":"IF(L24-F24>0,L24-F24,)","v":0},{"$f":"IF(M24-G24>0,M24-G24,)","v":0},"ou",{"$f":"IF(C24-I24>0,C24-I24,0)","v":25460},{"$f":"IF(D24-J24>0,D24-J24,0)","v":110676},{"$f":"IF(E24-K24>0,E24-K24,0)","v":0},{"$f":"IF(F24-L24>0,F24-L24,0)","v":0},{"$f":"IF(G24-M24>0,G24-M24,0)","v":110676},"Variation de trésorerie (II)"]
[null,null,null,null,null,null,{"$f":"D26+F26","v":0},null,null,null,null,null,{"$f":"J26+L26","v":0},null,null,null,null,"Décomposition de la variation de trésorerie"]
[null,"dont Abondement de la trésorerie fléchée *** (a1)",null,null,null,null,0,"ou",null,0,null,null,0,"dont Prélèvement sur la trésorerie fléchée *** (a2)"]
[null,null,null,null,null,null,0,null,null,null,null,null,0]
[null,"dont Abondement sur la trésorerie non fléchée (d1)",{"$f":"C25","v":0},null,null,null,0,"ou",{"$f":"I25","v":25460},{"$f":"J25-J27","v":110676},null,null,110676,"dont Prélèvement sur la trésorerie non fléchée (d2)",null,"= différence entre variation de trésorerie (I ou II) et (a)"]
[null,null,null,null,null,null,0,null,null,null,null,null,0]
[null,"TOTAL DES BESOINS (1 + I)",{"$f":"C25+C24","v":25460},{"$f":"D25+D24","v":110676},0,{"$f":"F25+F24","v":0},{"$f":"G25+G24","v":110676},"et",{"$f":"I25+I24","v":25460},{"$f":"J25+J24","v":110676},0,0,110676,"TOTAL DES FINANCEMENTS (2 + II)"]
[]
[null,"* solde budgétaire à détailler pour chaque composante du budget de l'établissement",{"$f":"IF(ROUND(C11,-1)<>ROUND('2-tab_aut_budg_Fondation'!N30,-1),\"! Incohérence solde budgétaire N-1 avec Tab2 ETAB\",\"\")","v":""},{"$f":"IF(ROUND(D11,-1)<>ROUND('2-tab_aut_budg_Fondation'!O30,-1),\"! Incohérence solde budgétaire BI avec Tab2 ETAB\",\"\")","v":""},{"$f":"IF(ROUND(E11,-1)<>ROUND('2-tab_aut_budg_Fondation'!P30,-1),\"! Incohérence solde budgétaire BR avec Tab2 ETAB\",\"\")","v":""},{"$f":"IF(ROUND(F11,-1)<>ROUND('2-tab_aut_budg_Fondation'!Q30,-1),\"! Incohérence solde budgétaire BR tot avec Tab2 ETAB\",\"\")","v":""},{"$f":"IF(ROUND(G11,-1)<>ROUND('2-tab_aut_budg_Fondation'!R30,-1),\"! Incohérence solde budgétaire Total avec Tab2 ETAB\",\"\")","v":""},null,{"$f":"IF(ROUND(I11,-1)<>ROUND('2-tab_aut_budg_Fondation'!D30,-1),\"! Incohérence solde budgétaire N-1 avec Tab2 ETAB\",\"\")","v":""},{"$f":"IF(ROUND(J11,-1)<>ROUND('2-tab_aut_budg_Fondation'!F30,-1),\"! Incohérence solde budgétaire BI avec Tab2 ETAB\",\"\")","v":""},{"$f":"IF(ROUND(K11,-1)<>ROUND('2-tab_aut_budg_Fondation'!H30,-1),\"! Incohérence solde budgétaire BR avec Tab2 ETAB\",\"\")","v":""},{"$f":"IF(ROUND(L11,-1)<>ROUND('2-tab_aut_budg_Fondation'!J30,-1),\"! Incohérence solde budgétaire BR tot avec Tab2 ETAB\",\"\")","v":""},{"$f":"IF(ROUND(M11,-1)<>ROUND('2-tab_aut_budg_Fondation'!L30,-1),\"! Incohérence solde budgétaire Total avec Tab2 ETAB\",\"\")","v":""}]
[null,"Montant issu du tableau \"Autorisations budgétaires\" (tableau 2)",null,null,null,{"$f":"IF(ROUND(G11,-1)<>ROUND('3-tab_destination_origine_Fonda'!K52,-1),\"! Incohérence solde budgétaire avec Tab3 ETAB\",\"\")","v":""},{"$f":"IF(ROUND(G20,-1)<>ROUND('5-tab compte de tiers_Fondation'!E20,-1),\"! Incohérence décaissements tiers avec Tab5\",\"\")","v":""},null,null,null,null,{"$f":"IF(ROUND(M11,-1)<>ROUND('3-tab_destination_origine_Fonda'!J30,-1),\"! Incohérence solde budgétaire avec Tab3 ETAB\",\"\")","v":""},{"$f":"IF(ROUND(M20,-1)<>ROUND('5-tab compte de tiers_Fondation'!F20,-1),\"! Incohérence encaissements tiers avec Tab5\",\"\")","v":""}]
[null,"** Montants issus du tableau \"Opérations pour compte de tiers\" (tableau 5)",null,null,null,{"$f":"IF(ROUND(G18,-1)<>ROUND('7-tab Plan_tréso_Fondation'!O39,-1),\"! Incohérence remb emprunts avec Tab7\",\"\")","v":""},{"$f":"IF(ROUND(G20+G22,-1)<>ROUND('7-tab Plan_tréso_Fondation'!O43,-1),\"! Incohérence décaissements tiers avec Tab7\",\"\")","v":""},null,null,null,null,{"$f":"IF(ROUND(M18,-1)<>ROUND('7-tab Plan_tréso_Fondation'!O19,-1),\"! Incohérence recettes emprunts avec Tab7\",\"\")","v":""},{"$f":"IF(ROUND(M20+M22,-1)<>ROUND('7-tab Plan_tréso_Fondation'!O23,-1),\"! Incohérence encaissements tiers avec Tab7\",\"\")","v":""}]
[null,"*** Montant issu du tableau \"Opérations sur recettes fléchées\" (tableau 8)",{"$f":"IF('6-tab CR_TF_Fondation'!H48<=0,IF(ROUND('6-tab CR_TF_Fondation'!H48,-1)<>-ROUND(I25,-1),\"! Incohérence var trésorerie N-1 Tab6 ETAB\",\"\"),IF(ROUND('6-tab CR_TF_Fondation'!H48,-1)<>ROUND(C25,-1),\"! Incohérence var N-1 trésorerie Tab6 ETAB\",\"\"))","v":""},null,{"$f":"IF('6-tab CR_TF_Fondation'!J48<=0,IF(ROUND('6-tab CR_TF_Fondation'!J48,-1)<>-ROUND(K25,-1),\"! Incohérence var trésorerie BR Tab6 ETAB\",\"\"),IF(ROUND('6-tab CR_TF_Fondation'!J48,-1)<>ROUND(E25,-1),\"! Incohérence var trésorerie BR Tab6 ETAB\",\"\"))","v":""},{"$f":"IF('6-tab CR_TF_Fondation'!K48<=0,IF(ROUND('6-tab CR_TF_Fondation'!K48,-1)<>-ROUND(L25,-1),\"! Incohérence var trésorerie BR tot Tab6 ETAB\",\"\"),IF(ROUND('6-tab CR_TF_Fondation'!K48,-1)<>ROUND(F25,-1),\"! Incohérence var trésorerie BR tot Tab6 ETAB\",\"\"))","v":""},{"$f":"IF('6-tab CR_TF_Fondation'!L48<=0,IF(ROUND('6-tab CR_TF_Fondation'!L48,-1)<>-ROUND(M25,-1),\"! Incohérence var trésorerie Total Tab6 ETAB\",\"\"),IF(ROUND('6-tab CR_TF_Fondation'!L48,-1)<>ROUND(G25,-1),\"! Incohérence var trésorerie Total Tab6 ETAB\",\"\"))","v":""},null,null,null,null,null,{"$f":"IF('7-tab Plan_tréso_Fondation'!O48<=0,IF(-ROUND('7-tab Plan_tréso_Fondation'!O48,-1)<>ROUND('4-tab_financier_Fondation'!M25,-1),\"! Incohérence variation de trésorerie Tab7\",\"\"),IF(ROUND('7-tab Plan_tréso_Fondation'!O48,-1)<>ROUND('4-tab_financier_Fondation'!G25,-1),\"! Incohérence variation trésorerie Tab7\",\"\"))","v":""}]
[null,null,null,null,null,null,{"$f":"IF(#REF!>0,IF(ROUND(G27,-1)<>ROUND(#REF!,-1),\"! Incohérence abond. trésorerie fléchée avec Tab8 ETAB\",\"\"),\"\")","v":{"$error":"#REF!"}},null,null,null,null,null,{"$f":"IF(#REF!<=0,IF(ROUND(M27,-1)<>-ROUND(#REF!,-1),\"! Incohérence prélèv. trésorerie fléchée avec Tab8 ETAB\",\"\"),\"\")","v":{"$error":"#REF!"}}]
[null,"SAIC : service d'activités industrielles et commerciales"]
[null,"FU : fondation universitaire"]
[null,"BAI : budget annexe immobilier"]
[null,"SIE : service inter-établissements"]

{"sheet":"5-tab compte de tiers_Fondation","index":10,"n_rows":25,"n_cols":6,"rows_kept":25,"cut":false,"hidden":false,"merged":[[0,1,0,5],[1,1,1,5],[6,1,6,5],[19,1,19,3],[22,1,22,5]]}
[null,"Tableau 5 - Université de Bretagne Sud (0561718N) :Fondation "]
[null,{"$f":"\"Opérations pour le compte de tiers - Budget consolidé \"&Maquette!B4&\" \"&Maquette!B5&\" \"&Maquette!B3","v":"Opérations pour le compte de tiers - Budget consolidé initial  2024"}]
[]
[]
[null,"POUR INFORMATION DE L'ORGANE DÉLIBÉRANT"]
[]
[]
[]
[null,"Opérations ou regroupement d'opérations de même nature","Comptes","Libellé","Prévisions de décaissements","Prévisions d'encaissements"]
[null,"Opération 1","C  46711","Bourse Mobilité Internationale"]
[null,null,"C  4…"]
[null,"Opération  2","C  44571 et C 44551","TVA"]
[null,null,"C  4..."]
[null,"Opération  3","C  4731","Projet Flower (Interreg)"]
[null,null,"C  4..."]
[null,"Opération 4","C  4731","Projet Indigo (Interreg)"]
[null,null,"C  4..."]
[null,"Opération 5","C  467611","Projet Cyberus "]
[null,null,"C  4..."]
[null,"TOTAL",null,null,{"$f":"SUM(E10:E19)","v":0},{"$f":"SUM(F10:F19)","v":0}]
[null,null,null,null,"(c1)","(c2)"]
[null,null,null,"(c1) et (c2) étant repris au tableau \"Équilibre financier\" (tableau 4)"]
[null,"N.B. : Dans l'hypothèse d'un écart entre les crédits et les débits d'un même compte, l'opération concernée devra faire l'objet d'une explication spécifique."]
[]
[null,null,null,null,{"$f":"IF(ROUND(E20,-1)<>ROUND('4-tab_financier_Fondation'!G20,-1),\"! Incohérence total décaissements tiers avec Tab4\",\"\")","v":""},{"$f":"IF(ROUND(F20,-1)<>ROUND('4-tab_financier_Fondation'!M20,-1),\"! Incohérence total encaissements tiers avec Tab4\",\"\")","v":""}]

{"sheet":"6-tab CR_TF_Fondation","index":11,"n_rows":54,"n_cols":14,"rows_kept":54,"cut":false,"hidden":false,"merged":[[47,13,47,14],[50,13,50,14],[35,0,37,0],[35,1,37,1],[35,2,37,2],[35,3,37,3],[35,5,37,5],[35,4,37,4],[45,13,45,14],[18,1,18,2],[31,3,31,4],[50,0,50,6],[44,0,44,6],[45,0,45,6],[46,0,46,6],[47,0,47,6],[48,0,48,6],[49,0,49,6],[0,0,0,7],[1,0,1,7],[10,0,11,0],[10,1,11,1],[10,2,11,2],[10,3,11,3],[3,0,3,11],[10,4,11,4],[10,5,11,5],[5,1,5,2],[5,6,5,7]]}
["Tableau 6 - Université de Bretagne Sud (0561718N) :Fondation "]
[{"$f":"\"Situation patrimoniale - Budget consolidé \"&Maquette!B4&\" \"&Maquette!B5&\" \"&Maquette!B3","v":"Situation patrimoniale - Budget consolidé initial  2024"}]
[]
["POUR VOTE DE L'ORGANE DÉLIBÉRANT"]
[]
["Compte de résultat prévisionnel"]
[]
["CHARGES","Exécution N-1: BR2/2023","Budget initial\n(a)","Nouveau BR","Somme des BR\n(yc nouveau BR) (b)","TOTAL : dernier budget modifié\n(c) = (a) + (b)","PRODUITS","Exécution N-1: BR2/2022","Budget initial\n(d)","Nouveau BR","Somme des BR\n(yc nouveau BR) (e)","TOTAL : dernier budget modifié\n(f) = (d) + (e)"]
["Personnel",170950,259871,null,null,{"$f":"C9+E9","v":259871},"Subventions de l'Etat",74498.459999999992,66000,null,null,{"$f":"I9+K9","v":66000}]
["dont charges de pensions civiles*",null,null,null,null,{"$f":"C10+E10","v":0},"Fiscalité affectée",0,null,null,null,{"$f":"I10+K10","v":0}]
["Fonctionnement (autre que les charges de personnel) et intervention",237831,250746,null,null,{"$f":"C11+E11","v":250746},"Autres subventions",9000,null,null,null,0]
[null,null,null,null,null,null,"Autres produits",349038,404280,null,null,404280]
["TOTAL DES CHARGES (1)",{"$f":"B9+B11","v":408781},{"$f":"C9+C11","v":510617},{"$f":"D9+D11","v":0},{"$f":"E9+E11","v":0},{"$f":"F9+F11","v":510617},"TOTAL DES PRODUITS (2)",{"$f":"SUM(H9:H12)","v":432536.45999999996},{"$f":"SUM(I9:I12)","v":470280},0,0,{"$f":"SUM(L9:L12)","v":470280}]
["Résultat prévisionnel : bénéfice   (3) = (2) - (1)",{"$f":"IF(H13-B13>0,H13-B13,0)","v":23755.459999999963},{"$f":"IF(I13-C13>0,I13-C13,0)","v":0},null,null,{"$f":"IF(L13-F13>0,L13-F13,0)","v":0},"Résultat prévisionnel : perte  (4) = (1) - (2)",{"$f":"IF(B13-H13>0,B13-H13,0)","v":0},{"$f":"IF(C13-I13>0,C13-I13,0)","v":40337},{"$f":"IF(D13-J13>0,D13-J13,0)","v":0},{"$f":"IF(E13-K13>0,E13-K13,0)","v":0},{"$f":"IF(F13-L13>0,F13-L13,0)","v":40337}]
["TOTAL EQUILIBRE du compte de résultat prévisionnel (1) + (3) = (2) + (4)",{"$f":"B13+B14","v":432536.45999999996},{"$f":"C13+C14","v":510617},{"$f":"D13+D14","v":0},{"$f":"E13+E14","v":0},{"$f":"F13+F14","v":510617},"TOTAL EQUILIBRE du compte de résultat prévisionnel (1) + (3)  = (2) + (4)",{"$f":"H13+H14","v":432536.45999999996},{"$f":"I13+I14","v":510617},{"$f":"J13+J14","v":0},0,{"$f":"L13+L14","v":510617}]
["* Il s'agit des sous catégories de comptes présentant les contributions employeur au CAS Pensions.",null,null,{"$f":"\"Nouveau BR : Différence charges de personnel entre tableau 2 et tableau 6 est de : \"&(ROUND(D9,0)-ROUND('2-tab_aut_budg_Fondation'!H11+'2-tab_aut_budg_Fondation'!H24,0))","v":"Nouveau BR : Différence charges de personnel entre tableau 2 et tableau 6 est de : 0"},{"$f":"\"Somme des BR : Différence charges de personnel entre tableau 2 et tableau 6 est de : \"&(ROUND(E9,0)-ROUND('2-tab_aut_budg_Fondation'!J11+'2-tab_aut_budg_Fondation'!J24,0))","v":"Somme des BR : Différence charges de personnel entre tableau 2 et tableau 6 est de : 0"},{"$f":"\"Budget BI+BR : Différence charges de personnel entre tableau 2 et tableau 6 est de : \"&(ROUND(F9,0)-ROUND('2-tab_aut_budg_Fondation'!L11+'2-tab_aut_budg_Fondation'!L24,0))","v":"Budget BI+BR : Différence charges de personnel entre tableau 2 et tableau 6 est de : -2805"}]
[null,{"$f":"IF('2-tab_aut_budg_Fondation'!L24=\"\",IF(ROUND(B10,-1)<>ROUND('2-tab_aut_budg_Fondation'!D12,-1),\"! Incohérence charges PC Tab2 ETAB\",\"\"),\"\")","v":""},{"$f":"IF('2-tab_aut_budg_Fondation'!L24=\"\",IF(ROUND(C10,-1)<>ROUND('2-tab_aut_budg_Fondation'!F12,-1),\"! Incohérence charges PC Tab2 ETAB\",\"\"),\"\")","v":""},{"$f":"IF('2-tab_aut_budg_Fondation'!L24=\"\",IF(ROUND(D10,-1)<>ROUND('2-tab_aut_budg_Fondation'!H12,-1),\"! Incohérence charges PC Tab2 ETAB\",\"\"),\"\")","v":""},{"$f":"IF('2-tab_aut_budg_Fondation'!L24=\"\",IF(ROUND(E10,-1)<>ROUND('2-tab_aut_budg_Fondation'!J12,-1),\"! Incohérence charges PC Tab2 ETAB\",\"\"),\"\")","v":""},{"$f":"IF('2-tab_aut_budg_Fondation'!L24=\"\",IF(ROUND(F10,-1)<>ROUND('2-tab_aut_budg_Fondation'!L12,-1),\"! Incohérence charges PCl Tab2 ETAB\",\"\"),\"\")","v":""}]
[]
["Calcul de la capacité d'autofinancement (CAF)",{"$f":"IF(ROUND(F28,-1)=ROUND('6-tab CR_TF_AGR'!F28+'6-tab CR_TF_SIE'!F28,-1),\"\",\"! Pb agrégat CAF/IAF\")","v":{"$error":"#REF!"}}]
[]
[null,"Exécution N-1: BR2/2023","Budget initial\n(g)","Nouveau BR","Somme des BR\n(yc nouveau BR) (h)","TOTAL : dernier budget modifié\n(i) = (g) + (h)"]
["Résultat prévisionnel de l'exercice \n(bénéfice (3) ou perte (-4)",{"$f":"IF(B14>0,B14,-H14)","v":23755.459999999963},{"$f":"IF(C14>0,C14,-I14)","v":-40337},{"$f":"IF(D14>0,D14,-J14)","v":0},{"$f":"IF(E14>0,E14,-K14)","v":0},{"$f":"IF(F14>0,F14,-L14)","v":-40337}]
["+  dotations aux amortissements, dépréciations et provisions",63888,14971,null,null,{"$f":"C23+E23","v":14971}]
["-  reprises sur amortissements, dépréciations et provisions",0,-5280,null,null,{"$f":"C24+E24","v":-5280}]
["+ valeur nette comptable des éléments d'actifs cédés",0,null,null,null,{"$f":"C25+E25","v":0}]
["- produits de cession d'éléments d'actifs",0,null,null,null,{"$f":"C26+E26","v":0}]
["- quote-part des subventions d’investissement virée au résultat de l’exercice",-25680,null,null,null,{"$f":"C27+E27","v":0}]
["= CAF ou IAF*",{"$f":"SUM(B22:B27)","v":61963.459999999963},{"$f":"SUM(C22:C27)","v":-30646},0,0,{"$f":"SUM(F22:F27)","v":-30646}]
["* capacité d'autofinancement ou insuffisance d'autofinancement"]
[]
[]
["État prévisionnel de l'évolution de la situation patrimoniale en droits constatés",null,null,{"$f":"IF(ROUND(F41,-1)=ROUND('6-tab CR_TF_AGR'!F41+'6-tab CR_TF_SIE'!F41,-1),\"\",\"! Pb agrégat apport FDR\")","v":{"$error":"#REF!"}},null,null,{"$f":"IF(ROUND(L41,-1)=ROUND('6-tab CR_TF_AGR'!L41+'6-tab CR_TF_SIE'!L41,-1),\"\",\"! Pb agrégat prélèvement FDR\")","v":{"$error":"#REF!"}}]
[]
["EMPLOIS","Exécution N-1: BR2/2023","Budget initial\n(j)","Nouveau BR","Somme des BR\n(yc nouveau BR) (k)","TOTAL : dernier budget modifié\n(l) = (j) + (k)","RESSOURCES","Exécution N-1: BR2/2022","Budget initial\n(m)","Nouveau BR","Somme des BR\n(yc nouveau BR) (n)","TOTAL : dernier budget modifié\n(o) = (m) + (n)"]
["Insuffisance d'autofinancement*",{"$f":"IF(B28<0,-B28,0)","v":0},{"$f":"IF(C28<0,-C28,0)","v":30646},{"$f":"IF(D28<0,-D28,0)","v":0},{"$f":"IF(E28<0,-E28,0)","v":0},{"$f":"IF(F28<0,-F28,0)","v":30646},"Capacité d'autofinancement*",{"$f":"IF(B28>0,B28,0)","v":61963.459999999963},{"$f":"IF(C28>0,C28,0)","v":0},{"$f":"IF(D28>0,D28,0)","v":0},{"$f":"IF(E28>0,E28,0)","v":0},{"$f":"IF(F28>0,F28,0)","v":0}]
["Investissements",9001,14000,null,null,{"$f":"C36+E36","v":14000},"Financement de l'actif par l'État",0,0,null,null,{"$f":"I36+K36","v":0}]
[null,null,null,null,null,null,"Financement de l'actif par des tiers autres que l'Etat",0,0,null,null,{"$f":"I37+K37","v":0}]
[null,null,null,null,null,null,"Autres ressources",-24000,null,null,null,0]
["Remboursement des dettes financières",null,null,null,null,{"$f":"C39+E39","v":0},"Augmentation des dettes financières",0,0,null,null,0]
["TOTAL DES EMPLOIS (5)",{"$f":"SUM(B35:B39)","v":9001},44646,0,{"$f":"SUM(E35:E39)","v":0},{"$f":"SUM(F35:F39)","v":44646},"TOTAL DES RESSOURCES (6)",{"$f":"SUM(H35:H39)","v":37963.459999999963},0,0,{"$f":"SUM(K35:K39)","v":0},{"$f":"SUM(L35:L39)","v":0}]
["APPORT au FONDS DE ROULEMENT (7) = (6)-(5)",{"$f":"IF(H40-B40>0,H40-B40,0)","v":28962.459999999963},{"$f":"IF(I40-C40>0,I40-C40,0)","v":0},{"$f":"IF(J40-D40>0,J40-D40,0)","v":0},{"$f":"IF(K40-E40>0,K40-E40,0)","v":0},{"$f":"IF(L40-F40>0,L40-F40,0)","v":0},"PRELEVEMENT sur FONDS DE ROULEMENT (8) = (5)-(6)",{"$f":"IF(B40-H40>0,B40-H40,0)","v":0},{"$f":"IF(C40-I40>0,C40-I40,0)","v":44646},{"$f":"IF(D40-J40>0,D40-J40,0)","v":0},{"$f":"IF(E40-K40>0,E40-K40,0)","v":0},{"$f":"IF(F40-L40>0,F40-L40,0)","v":44646}]
[]
["POUR INFORMATION DE L'ORGANE DÉLIBÉRANT"]
[]
[null,null,null,null,null,null,null,"Exécution N-1: BR2/2023","Budget initial\n(q)","Nouveau BR","Somme des BR\n(yc nouveau BR) (r)","TOTAL : dernier budget modifié\nVariation (s) = (q) + (r)\nNiveau = (p) + (s)"]
["VARIATION DU FONDS DE ROULEMENT : APPORT (7) ou PRELEVEMENT (8)",null,null,null,null,null,null,{"$f":"IF(B41>0,B41,-H41)","v":28962.459999999963},{"$f":"IF(C41>0,C41,-I41)","v":-44646},{"$f":"IF(D41>0,D41,-J41)","v":0},{"$f":"IF(E41>0,E41,-K41)","v":0},{"$f":"I46+K46","v":-44646},null,{"$f":"IF(L46<0,IF(ROUND(L46,-1)=-ROUND('2-tab_aut_budg_Fondation'!R30,-1),\"! Impossibilité Var fonds de roulement = Solde budg Tab2 ETAB\",\"\"),IF(L46>0,IF(ROUND(L46,-1)=ROUND('2-tab_aut_budg_Fondation'!L30,-1),\"! Impossibilité Var fonds de roulement = Solde budg Tab2 ETAB\",\"\"),\"\"))","v":""}]
["Variation du BESOIN en FONDS DE ROULEMENT",null,null,null,null,null,null,{"$f":"H46-H48","v":54422.459999999963},{"$f":"I46-I48","v":66030},null,null,{"$f":"I47+K47","v":66030}]
["Variation de la TRESORERIE : ABONDEMENT (I) ou PRELEVEMENT (II) *",null,null,null,null,null,null,-25460,{"$f":"'7-tab Plan_tréso_Fondation'!O48","v":-110676},null,null,-110676]
["Niveau du FONDS DE ROULEMENT",null,null,null,null,null,null,355947.62,{"$f":"H49+I46","v":311301.62},null,null,{"$f":"H49+L46","v":311301.62}]
["Niveau du BESOIN EN FONDS DE ROULEMENT",null,null,null,null,null,null,104345.08000000002,{"$f":"I49-I51","v":170375.08},null,null,{"$f":"H50+L47","v":170375.08000000002}]
["Niveau de la TRESORERIE",null,null,null,null,null,null,251602.54,{"$f":"H51+I48","v":140926.54},null,null,140926.54]
[]
["* : montant issu du tableau \"équilibre financier\"",null,null,null,null,null,null,{"$f":"IF(H48<=0,IF(ROUND(H48,-1)<>-ROUND('4-tab_financier_Fondation'!I25,-1),\"! Incohérence var trésorerie N-1 Tab4\",\"\"),IF(ROUND(H48,-1)<>ROUND('4-tab_financier_Fondation'!C25,-1),\"! Incohérence var trésorerie N-1 Tab4\",\"\"))","v":""},null,{"$f":"IF(J48<=0,IF(ROUND(J48,-1)<>-ROUND('4-tab_financier_Fondation'!K25,-1),\"! Incohérence var trésorerie BR Tab4\",\"\"),IF(ROUND(J48,-1)<>ROUND('4-tab_financier_Fondation'!E25,-1),\"! Incohérence var trésorerie BR Tab4\",\"\"))","v":""},{"$f":"IF(K48<=0,IF(ROUND(K48,-1)<>-ROUND('4-tab_financier_Fondation'!L25,-1),\"! Incohérence var trésorerie BR totTab4\",\"\"),IF(ROUND(K48,-1)<>ROUND('4-tab_financier_Fondation'!F25,-1),\"! Incohérence var trésorerie BR tot Tab4\",\"\"))","v":""},{"$f":"IF(L48<=0,IF(ROUND(L48,-1)<>-ROUND('4-tab_financier_Fondation'!M25,-1),\"! Incohérence trésorerie Total Tab4\",\"\"),IF(ROUND(L48,-1)<>ROUND('4-tab_financier_Fondation'!G25,-1),\"! Incohérence variation trésorerie Total Tab4\",\"\"))","v":""}]
[null,null,null,null,null,null,null,null,null,null,null,{"$f":"IF(ROUND(L51,-1)<>ROUND('7-tab Plan_tréso_Fondation'!N49,-1),\"! Incohérence de niveau de trésorerie final avec Tab7\",\"\")","v":""}]

{"sheet":"6-tab CR_TF_AGR","index":12,"n_rows":53,"n_cols":14,"rows_kept":53,"cut":false,"hidden":true,"merged":[[0,0,0,7],[1,0,1,7],[3,0,3,11],[5,1,5,2],[5,6,5,7],[10,5,11,5],[18,1,18,2],[31,3,31,4],[35,0,37,0],[35,1,37,1],[35,2,37,2],[35,3,37,3],[35,4,37,4],[35,5,37,5],[10,0,11,0],[10,1,11,1],[10,2,11,2],[10,3,11,3],[10,4,11,4],[44,0,44,6],[45,0,45,6],[46,0,46,6],[47,0,47,6],[47,13,47,14],[48,0,48,6],[49,0,49,6],[50,0,50,6],[50,13,50,14],[45,13,45,15]]}
["Tableau 6 - Université de Bretagne Sud (0561718N) : Etablissement principal + Fondation"]
[{"$f":"\"Situation patrimoniale - Budget agrégé \"&Maquette!B4&\" \"&Maquette!B5&\" \"&Maquette!B3","v":"Situation patrimoniale - Budget agrégé initial  2024"}]
[]
["POUR VOTE DE L'ORGANE DÉLIBÉRANT"]
[]
["Compte de résultat prévisionnel",{"$f":"IF(ROUND(F13,-1)=ROUND(#REF!+#REF!,-1),\"\",\"! Pb agrégat charges\")","v":{"$error":"#REF!"}},null,null,null,null,{"$f":"IF(ROUND(L13,-1)=ROUND(#REF!+#REF!,-1),\"\",\"! Pb agrégat produits\")","v":{"$error":"#REF!"}}]
[]
["CHARGES","Exécution N-1","Budget initial\n(a)","Nouveau BR","Somme des BR\n(yc nouveau BR) (b)","TOTAL : dernier budget modifié\n(c) = (a) + (b)","PRODUITS","Exécution N-1","Budget initial\n(d)","Nouveau BR","Somme des BR\n(yc nouveau BR) (e)","TOTAL : dernier budget modifié\n(f) = (d) + (e)"]
["Personnel",{"$f":"#REF!+#REF!","v":{"$error":"#REF!"}},{"$f":"#REF!+#REF!","v":{"$error":"#REF!"}},{"$f":"#REF!+#REF!","v":{"$error":"#REF!"}},{"$f":"#REF!+#REF!","v":{"$error":"#REF!"}},{"$f":"C9+E9","v":{"$error":"#REF!"}},"Subventions de l'Etat",{"$f":"#REF!+#REF!","v":{"$error":"#REF!"}},{"$f":"#REF!+#REF!","v":{"$error":"#REF!"}},{"$f":"#REF!+#REF!","v":{"$error":"#REF!"}},{"$f":"#REF!+#REF!","v":{"$error":"#REF!"}},{"$f":"I9+K9","v":{"$error":"#REF!"}}]
["dont charges de pensions civiles*",{"$f":"#REF!+#REF!","v":{"$error":"#REF!"}},{"$f":"#REF!+#REF!","v":{"$error":"#REF!"}},{"$f":"#REF!+#REF!","v":{"$error":"#REF!"}},{"$f":"#REF!+#REF!","v":{"$error":"#REF!"}},{"$f":"C10+E10","v":{"$error":"#REF!"}},"Fiscalité affectée",{"$f":"#REF!+#REF!","v":{"$error":"#REF!"}},{"$f":"#REF!+#REF!","v":{"$error":"#REF!"}},{"$f":"#REF!+#REF!","v":{"$error":"#REF!"}},{"$f":"#REF!+#REF!","v":{"$error":"#REF!"}},{"$f":"I10+K10","v":{"$error":"#REF!"}}]
["Fonctionnement (autre que les charges de personnel) et intervention",{"$f":"#REF!+#REF!","v":{"$error":"#REF!"}},{"$f":"#REF!+#REF!","v":{"$error":"#REF!"}},{"$f":"#REF!+#REF!","v":{"$error":"#REF!"}},{"$f":"#REF!+#REF!","v":{"$error":"#REF!"}},{"$f":"C11+E11","v":{"$error":"#REF!"}},"Autres subventions",{"$f":"#REF!+#REF!","v":{"$error":"#REF!"}},{"$f":"#REF!+#REF!","v":{"$error":"#REF!"}},{"$f":"#REF!+#REF!","v":{"$error":"#REF!"}},{"$f":"#REF!+#REF!","v":{"$error":"#REF!"}},{"$error":"#REF!"}]
[null,{"$f":"#REF!+#REF!","v":{"$error":"#REF!"}},{"$f":"#REF!+#REF!","v":{"$error":"#REF!"}},{"$f":"#REF!+#REF!","v":{"$error":"#REF!"}},{"$f":"#REF!+#REF!","v":{"$error":"#REF!"}},null,"Autres produits",{"$f":"#REF!+#REF!","v":{"$error":"#REF!"}},{"$f":"#REF!+#REF!","v":{"$error":"#REF!"}},{"$f":"#REF!+#REF!","v":{"$error":"#REF!"}},{"$f":"#REF!+#REF!","v":{"$error":"#REF!"}},{"$error":"#REF!"}]
["TOTAL DES CHARGES (1)",{"$f":"B9+B11","v":{"$error":"#REF!"}},{"$f":"C9+C11","v":{"$error":"#REF!"}},{"$f":"D9+D11","v":{"$error":"#REF!"}},{"$error":"#REF!"},{"$f":"F9+F11","v":{"$error":"#REF!"}},"TOTAL DES PRODUITS (2)",{"$f":"SUM(H9:H12)","v":{"$error":"#REF!"}},{"$f":"SUM(I9:I12)","v":{"$error":"#REF!"}},{"$error":"#REF!"},{"$error":"#REF!"},{"$f":"SUM(L9:L12)","v":{"$error":"#REF!"}}]
["Résultat prévisionnel : bénéfice   (3) = (2) - (1)",{"$f":"IF(H13-B13>0,H13-B13,0)","v":{"$error":"#REF!"}},{"$f":"IF(I13-C13>0,I13-C13,0)","v":{"$error":"#REF!"}},{"$f":"IF(J13-D13>0,J13-D13,0)","v":{"$error":"#REF!"}},{"$f":"IF(K13-E13>0,K13-E13,0)","v":{"$error":"#REF!"}},{"$f":"IF(L13-F13>0,L13-F13,0)","v":{"$error":"#REF!"}},"Résultat prévisionnel : perte  (4) = (1) - (2)",{"$f":"IF(B13-H13>0,B13-H13,0)","v":{"$error":"#REF!"}},{"$f":"IF(C13-I13>0,C13-I13,0)","v":{"$error":"#REF!"}},{"$f":"IF(D13-J13>0,D13-J13,0)","v":{"$error":"#REF!"}},{"$f":"IF(E13-K13>0,E13-K13,0)","v":{"$error":"#REF!"}},{"$f":"IF(F13-L13>0,F13-L13,0)","v":{"$error":"#REF!"}}]
["TOTAL EQUILIBRE du compte de résultat prévisionnel (1) + (3) = (2) + (4)",{"$f":"B13+B14","v":{"$error":"#REF!"}},{"$f":"C13+C14","v":{"$error":"#REF!"}},{"$f":"D13+D14","v":{"$error":"#REF!"}},{"$error":"#REF!"},{"$f":"F13+F14","v":{"$error":"#REF!"}},"TOTAL EQUILIBRE du compte de résultat prévisionnel (1) + (3)  = (2) + (4)",{"$f":"H13+H14","v":{"$error":"#REF!"}},{"$f":"I13+I14","v":{"$error":"#REF!"}},{"$error":"#REF!"},{"$error":"#REF!"},{"$f":"L13+L14","v":{"$error":"#REF!"}}]
["* Il s'agit des sous catégories de comptes présentant les contributions employeur au CAS Pensions.",{"$f":"\"Exécution N-1 : Différence charges de personnel entre tableau 2 et tableau 6 est de : \"&(ROUND(B9,0)-ROUND('2-tab_aut_budg_AGR'!D11+'2-tab_aut_budg_AGR'!D24,0))","v":{"$error":"#REF!"}},{"$f":"\"BI : Différence charges de personnel entre tableau 2 et tableau 6 est de : \"&(ROUND(C9,0)-ROUND('2-tab_aut_budg_AGR'!F11+'2-tab_aut_budg_AGR'!F24,0))","v":{"$error":"#REF!"}},{"$f":"\"Nouveau BR : Différence charges de personnel entre tableau 2 et tableau 6 est de : \"&(ROUND(D9,0)-ROUND('2-tab_aut_budg_AGR'!H11+'2-tab_aut_budg_AGR'!H24,0))","v":{"$error":"#REF!"}},{"$f":"\"Somme des BR : Différence charges de personnel entre tableau 2 et tableau 6 est de : \"&(ROUND(E9,0)-ROUND('2-tab_aut_budg_AGR'!J11+'2-tab_aut_budg_AGR'!J24,0))","v":{"$error":"#REF!"}},{"$f":"\"Budget BI+BR : Différence charges de personnel entre tableau 2 et tableau 6 est de : \"&(ROUND(F9,0)-ROUND('2-tab_aut_budg_AGR'!L11+'2-tab_aut_budg_AGR'!L24,0))","v":{"$error":"#REF!"}}]
[null,{"$f":"IF('2-tab_aut_budg_AGR'!L24=\"\",IF(ROUND(B10,-1)<>ROUND('2-tab_aut_budg_AGR'!D12,-1),\"! Incohérence charges PC Tab2 AGR\",\"\"),\"\")","v":""},{"$f":"IF('2-tab_aut_budg_AGR'!L24=\"\",IF(ROUND(C10,-1)<>ROUND('2-tab_aut_budg_AGR'!F12,-1),\"! Incohérence charges PC Tab2 AGR\",\"\"),\"\")","v":""},{"$f":"IF('2-tab_aut_budg_AGR'!L24=\"\",IF(ROUND(D10,-1)<>ROUND('2-tab_aut_budg_AGR'!H12,-1),\"! Incohérence charges PC Tab2 AGR\",\"\"),\"\")","v":""},{"$f":"IF('2-tab_aut_budg_AGR'!L24=\"\",IF(ROUND(E10,-1)<>ROUND('2-tab_aut_budg_AGR'!J12,-1),\"! Incohérence charges PC Tab2 AGR\",\"\"),\"\")","v":""},{"$f":"IF('2-tab_aut_budg_AGR'!L24=\"\",IF(ROUND(F10,-1)<>ROUND('2-tab_aut_budg_AGR'!L12,-1),\"! Incohérence charges PCl Tab2 AGR\",\"\"),\"\")","v":""}]
[]
["Calcul de la capacité d'autofinancement (CAF)",{"$f":"IF(ROUND(F28,-1)=ROUND(#REF!+#REF!,-1),\"\",\"! Pb agrégat CAF/IAF\")","v":{"$error":"#REF!"}}]
[]
[null,"Exécution N-1","Budget initial\n(g)","Nouveau BR","Somme des BR\n(yc nouveau BR) (h)","TOTAL : dernier budget modifié\n(i) = (g) + (h)"]
["Résultat prévisionnel de l'exercice \n(bénéfice (3) ou perte (-4)",{"$f":"IF(B14>0,B14,-H14)","v":{"$error":"#REF!"}},{"$f":"IF(C14>0,C14,-I14)","v":{"$error":"#REF!"}},{"$f":"IF(D14>0,D14,-J14)","v":{"$error":"#REF!"}},{"$f":"IF(E14>0,E14,-K14)","v":{"$error":"#REF!"}},{"$f":"IF(F14>0,F14,-L14)","v":{"$error":"#REF!"}}]
["+  dotations aux amortissements, dépréciations et provisions",{"$f":"#REF!+#REF!","v":{"$error":"#REF!"}},{"$f":"#REF!+#REF!","v":{"$error":"#REF!"}},{"$f":"#REF!+#REF!","v":{"$error":"#REF!"}},{"$f":"#REF!+#REF!","v":{"$error":"#REF!"}},{"$f":"C23+E23","v":{"$error":"#REF!"}}]
["-  reprises sur amortissements, dépréciations et provisions",{"$f":"#REF!+#REF!","v":{"$error":"#REF!"}},{"$f":"#REF!+#REF!","v":{"$error":"#REF!"}},{"$f":"#REF!+#REF!","v":{"$error":"#REF!"}},{"$f":"#REF!+#REF!","v":{"$error":"#REF!"}},{"$f":"C24+E24","v":{"$error":"#REF!"}}]
["+ valeur nette comptable des éléments d'actifs cédés",{"$f":"#REF!+#REF!","v":{"$error":"#REF!"}},{"$f":"#REF!+#REF!","v":{"$error":"#REF!"}},{"$f":"#REF!+#REF!","v":{"$error":"#REF!"}},{"$f":"#REF!+#REF!","v":{"$error":"#REF!"}},{"$f":"C25+E25","v":{"$error":"#REF!"}}]
["- produits de cession d'éléments d'actifs",{"$f":"#REF!+#REF!","v":{"$error":"#REF!"}},{"$f":"#REF!+#REF!","v":{"$error":"#REF!"}},{"$f":"#REF!+#REF!","v":{"$error":"#REF!"}},{"$f":"#REF!+#REF!","v":{"$error":"#REF!"}},{"$f":"C26+E26","v":{"$error":"#REF!"}}]
["- quote-part des subventions d’investissement virée au résultat de l’exercice",{"$f":"#REF!+#REF!","v":{"$error":"#REF!"}},{"$f":"#REF!+#REF!","v":{"$error":"#REF!"}},{"$f":"#REF!+#REF!","v":{"$error":"#REF!"}},{"$f":"#REF!+#REF!","v":{"$error":"#REF!"}},{"$f":"C27+E27","v":{"$error":"#REF!"}}]
["= CAF ou IAF*",{"$f":"SUM(B22:B27)","v":{"$error":"#REF!"}},{"$f":"SUM(C22:C27)","v":{"$error":"#REF!"}},{"$error":"#REF!"},{"$error":"#REF!"},{"$f":"SUM(F22:F27)","v":{"$error":"#REF!"}}]
["* capacité d'autofinancement ou insuffisance d'autofinancement"]
[]
[]
["État prévisionnel de l'évolution de la situation patrimoniale en droits constatés",null,null,{"$f":"IF(ROUND(F41,-1)=ROUND(#REF!+#REF!,-1),\"\",\"! Pb agrégat apport FDR\")","v":{"$error":"#REF!"}},null,null,{"$f":"IF(ROUND(L41,-1)=ROUND(#REF!+#REF!,-1),\"\",\"! Pb agrégat prélèvement FDR\")","v":{"$error":"#REF!"}}]
[]
["EMPLOIS","Exécution N-1","Budget initial\n(j)","Nouveau BR","Somme des BR\n(yc nouveau BR) (k)","TOTAL : dernier budget modifié\n(l) = (j) + (k)","RESSOURCES","Exécution N-1","Budget initial\n(m)","Nouveau BR","Somme des BR\n(yc nouveau BR) (n)","TOTAL : dernier budget modifié\n(o) = (m) + (n)"]
["Insuffisance d'autofinancement*",{"$f":"IF(B28<0,-B28,0)","v":{"$error":"#REF!"}},{"$f":"IF(C28<0,-C28,0)","v":{"$error":"#REF!"}},{"$f":"IF(D28<0,-D28,0)","v":{"$error":"#REF!"}},{"$f":"IF(E28<0,-E28,0)","v":{"$error":"#REF!"}},{"$f":"IF(F28<0,-F28,0)","v":{"$error":"#REF!"}},"Capacité d'autofinancement*",{"$f":"IF(B28>0,B28,0)","v":{"$error":"#REF!"}},{"$f":"IF(C28>0,C28,0)","v":{"$error":"#REF!"}},{"$f":"IF(D28>0,D28,0)","v":{"$error":"#REF!"}},{"$f":"IF(E28>0,E28,0)","v":{"$error":"#REF!"}},{"$f":"IF(F28>0,F28,0)","v":{"$error":"#REF!"}}]
["Investissements",{"$f":"#REF!+#REF!","v":{"$error":"#REF!"}},{"$f":"#REF!+#REF!","v":{"$error":"#REF!"}},{"$f":"#REF!+#REF!","v":{"$error":"#REF!"}},{"$f":"#REF!+#REF!","v":{"$error":"#REF!"}},{"$f":"C36+E36","v":{"$error":"#REF!"}},"Financement de l'actif par l'État",{"$f":"#REF!+#REF!","v":{"$error":"#REF!"}},{"$f":"#REF!+#REF!","v":{"$error":"#REF!"}},{"$f":"#REF!+#REF!","v":{"$error":"#REF!"}},{"$f":"#REF!+#REF!","v":{"$error":"#REF!"}},{"$f":"I36+K36","v":{"$error":"#REF!"}}]
[null,{"$f":"#REF!+#REF!","v":{"$error":"#REF!"}},{"$f":"#REF!+#REF!","v":{"$error":"#REF!"}},{"$f":"#REF!+#REF!","v":{"$error":"#REF!"}},{"$f":"#REF!+#REF!","v":{"$error":"#REF!"}},null,"Financement de l'actif par des tiers autres que l'Etat",{"$f":"#REF!+#REF!","v":{"$error":"#REF!"}},{"$f":"#REF!+#REF!","v":{"$error":"#REF!"}},{"$f":"#REF!+#REF!","v":{"$error":"#REF!"}},{"$f":"#REF!+#REF!","v":{"$error":"#REF!"}},{"$f":"I37+K37","v":{"$error":"#REF!"}}]
[null,{"$f":"#REF!+#REF!","v":{"$error":"#REF!"}},{"$f":"#REF!+#REF!","v":{"$error":"#REF!"}},{"$f":"#REF!+#REF!","v":{"$error":"#REF!"}},{"$f":"#REF!+#REF!","v":{"$error":"#REF!"}},null,"Autres ressources",{"$f":"#REF!+#REF!","v":{"$error":"#REF!"}},{"$f":"#REF!+#REF!","v":{"$error":"#REF!"}},{"$f":"#REF!+#REF!","v":{"$error":"#REF!"}},{"$f":"#REF!+#REF!","v":{"$error":"#REF!"}},{"$error":"#REF!"}]
["Remboursement des dettes financières",{"$f":"#REF!+#REF!","v":{"$error":"#REF!"}},{"$f":"#REF!+#REF!","v":{"$error":"#REF!"}},{"$f":"#REF!+#REF!","v":{"$error":"#REF!"}},{"$f":"#REF!+#REF!","v":{"$error":"#REF!"}},{"$f":"C39+E39","v":{"$error":"#REF!"}},"Augmentation des dettes financières",{"$f":"#REF!+#REF!","v":{"$error":"#REF!"}},{"$f":"#REF!+#REF!","v":{"$error":"#REF!"}},{"$f":"#REF!+#REF!","v":{"$error":"#REF!"}},{"$f":"#REF!+#REF!","v":{"$error":"#REF!"}},{"$error":"#REF!"}]
["TOTAL DES EMPLOIS (5)",{"$f":"SUM(B35:B39)","v":{"$error":"#REF!"}},{"$error":"#REF!"},{"$error":"#REF!"},{"$f":"SUM(E35:E39)","v":{"$error":"#REF!"}},{"$f":"SUM(F35:F39)","v":{"$error":"#REF!"}},"TOTAL DES RESSOURCES (6)",{"$f":"SUM(H35:H39)","v":{"$error":"#REF!"}},{"$error":"#REF!"},{"$error":"#REF!"},{"$error":"#REF!"},{"$f":"SUM(L35:L39)","v":{"$error":"#REF!"}}]
["APPORT au FONDS DE ROULEMENT (7) = (6)-(5)",{"$f":"IF(H40-B40>0,H40-B40,0)","v":{"$error":"#REF!"}},{"$f":"IF(I40-C40>0,I40-C40,0)","v":{"$error":"#REF!"}},{"$f":"IF(J40-D40>0,J40-D40,0)","v":{"$error":"#REF!"}},{"$f":"IF(K40-E40>0,K40-E40,0)","v":{"$error":"#REF!"}},{"$f":"IF(L40-F40>0,L40-F40,0)","v":{"$error":"#REF!"}},"PRELEVEMENT sur FONDS DE ROULEMENT (8) = (5)-(6)",{"$f":"IF(B40-H40>0,B40-H40,0)","v":{"$error":"#REF!"}},{"$f":"IF(C40-I40>0,C40-I40,0)","v":{"$error":"#REF!"}},{"$f":"IF(D40-J40>0,D40-J40,0)","v":{"$error":"#REF!"}},{"$f":"IF(E40-K40>0,E40-K40,0)","v":{"$error":"#REF!"}},{"$f":"IF(F40-L40>0,F40-L40,0)","v":{"$error":"#REF!"}}]
[]
["POUR INFORMATION DE L'ORGANE DÉLIBÉRANT"]
[]
[null,null,null,null,null,null,null,"Exécution N-1\n(p)","Budget initial\n(q)","Nouveau BR","Somme des BR\n(yc nouveau BR) (r)","TOTAL : dernier budget modifié\nVariation (s) = (q) + (r)\nNiveau = (p) + (s)"]
["VARIATION DU FONDS DE ROULEMENT : APPORT (7) ou PRELEVEMENT (8)",null,null,null,null,null,null,{"$f":"IF(B41>0,B41,-H41)","v":{"$error":"#REF!"}},{"$f":"IF(C41>0,C41,-I41)","v":{"$error":"#REF!"}},{"$f":"IF(D41>0,D41,-J41)","v":{"$error":"#REF!"}},{"$f":"IF(E41>0,E41,-K41)","v":{"$error":"#REF!"}},{"$f":"I46+K46","v":{"$error":"#REF!"}},null,{"$f":"IF(L46<0,IF(ROUND(L46,-1)=-ROUND('2-tab_aut_budg_AGR'!R30,-1),\"! Impossibilité Var fonds de roulement = Solde budg Tab2 AGR\",\"\"),IF(L46>0,IF(ROUND(L46,-1)=ROUND('2-tab_aut_budg_AGR'!L30,-1),\"! Impossibilité Var fonds de roulement = Solde budg Tab2 AGR\",\"\"),\"\"))","v":{"$error":"#REF!"}}]
["Variation du BESOIN en FONDS DE ROULEMENT",null,null,null,null,null,null,{"$f":"#REF!+#REF!","v":{"$error":"#REF!"}},{"$f":"#REF!+#REF!","v":{"$error":"#REF!"}},{"$f":"#REF!+#REF!","v":{"$error":"#REF!"}},{"$f":"#REF!+#REF!","v":{"$error":"#REF!"}},{"$f":"I47+K47","v":{"$error":"#REF!"}}]
["Variation de la TRESORERIE : ABONDEMENT (I) ou PRELEVEMENT (II) *",null,null,null,null,null,null,{"$f":"#REF!+#REF!","v":{"$error":"#REF!"}},{"$f":"#REF!+#REF!","v":{"$error":"#REF!"}},{"$f":"#REF!+#REF!","v":{"$error":"#REF!"}},{"$f":"#REF!+#REF!","v":{"$error":"#REF!"}},{"$error":"#REF!"},null,{"$f":"IF(ROUND(L48,-1)=ROUND(#REF!+#REF!,-1),\"\",\"! Pb agrégat variation trésorerie\")","v":{"$error":"#REF!"}}]
["Niveau du FONDS DE ROULEMENT",null,null,null,null,null,null,{"$f":"#REF!+#REF!","v":{"$error":"#REF!"}},{"$f":"#REF!+#REF!","v":{"$error":"#REF!"}},{"$f":"#REF!+#REF!","v":{"$error":"#REF!"}},{"$f":"#REF!+#REF!","v":{"$error":"#REF!"}},{"$f":"H49+L46","v":{"$error":"#REF!"}}]
["Niveau du BESOIN EN FONDS DE ROULEMENT",null,null,null,null,null,null,{"$f":"#REF!+#REF!","v":{"$error":"#REF!"}},{"$f":"#REF!+#REF!","v":{"$error":"#REF!"}},{"$f":"#REF!+#REF!","v":{"$error":"#REF!"}},{"$f":"#REF!+#REF!","v":{"$error":"#REF!"}},{"$f":"H50+L47","v":{"$error":"#REF!"}}]
["Niveau de la TRESORERIE",null,null,null,null,null,null,{"$f":"#REF!+#REF!","v":{"$error":"#REF!"}},{"$f":"#REF!+#REF!","v":{"$error":"#REF!"}},{"$f":"#REF!+#REF!","v":{"$error":"#REF!"}},{"$f":"#REF!+#REF!","v":{"$error":"#REF!"}},{"$error":"#REF!"},null,{"$f":"IF(ROUND(L51,-1)=ROUND(#REF!+#REF!,-1),\"\",\"! Pb agrégat niveau trésorerie\")","v":{"$error":"#REF!"}}]
[]
["* : montant issu du tableau \"équilibre financier\""]

{"sheet":"6-tab CR_TF_SIE","index":13,"n_rows":53,"n_cols":14,"rows_kept":53,"cut":false,"hidden":true,"merged":[[0,0,0,7],[1,0,1,7],[3,0,3,11],[4,6,5,6],[10,0,11,0],[10,1,11,1],[10,2,11,2],[10,3,11,3],[10,4,11,4],[10,5,11,5],[18,0,18,7],[35,0,37,0],[35,1,37,1],[35,2,37,2],[35,3,37,3],[35,4,37,4],[35,5,37,5],[45,13,45,15],[50,0,50,6],[44,0,44,6],[45,0,45,6],[46,0,46,6],[47,0,47,6],[48,0,48,6],[49,0,49,6]]}
["Tableau 6 - Université de Bretagne Sud (0561718N) : CFA"]
[{"$f":"\"Situation patrimoniale - Budget \"&Maquette!B4&\" \"&Maquette!B5&\" \"&Maquette!B3","v":"Situation patrimoniale - Budget initial  2024"}]
[]
["POUR VOTE DE L'ORGANE DÉLIBÉRANT"]
[]
["Compte de résultat prévisionnel"]
[]
["CHARGES","Exécution N-1","Budget initial\n(a)","Nouveau BR","Somme des BR\n(yc nouveau BR) (b)","TOTAL : dernier budget modifié\n(c) = (a) + (b)","PRODUITS","Exécution N-1","Budget initial\n(d)","Nouveau BR","Somme des BR\n(yc nouveau BR) (e)","TOTAL : dernier budget modifié\n(f) = (d) + (e)"]
["Personnel",null,null,null,null,{"$f":"C9+E9","v":0},"Subventions de l'Etat",null,null,null,null,{"$f":"I9+K9","v":0}]
["dont charges de pensions civiles*",null,null,null,null,{"$f":"C10+E10","v":0},"Fiscalité affectée",null,null,null,null,{"$f":"I10+K10","v":0}]
["Fonctionnement (autre que les charges de personnel) et intervention",null,null,null,null,{"$f":"C11+E11","v":0},"Autres subventions",null,null,null,null,0]
[null,null,null,null,null,null,"Autres produits",null,null,null,null,0]
["TOTAL DES CHARGES (1)",{"$f":"B9+B11","v":0},{"$f":"C9+C11","v":0},{"$f":"D9+D11","v":0},0,{"$f":"F9+F11","v":0},"TOTAL DES PRODUITS (2)",{"$f":"SUM(H9:H12)","v":0},{"$f":"SUM(I9:I12)","v":0},0,0,{"$f":"SUM(L9:L12)","v":0}]
["Résultat prévisionnel : bénéfice   (3) = (2) - (1)",{"$f":"IF(H13-B13>0,H13-B13,0)","v":0},{"$f":"IF(I13-C13>0,I13-C13,0)","v":0},{"$f":"IF(J13-D13>0,J13-D13,0)","v":0},{"$f":"IF(K13-E13>0,K13-E13,0)","v":0},{"$f":"IF(L13-F13>0,L13-F13,0)","v":0},"Résultat prévisionnel : perte  (4) = (1) - (2)",{"$f":"IF(B13-H13>0,B13-H13,0)","v":0},{"$f":"IF(C13-I13>0,C13-I13,0)","v":0},{"$f":"IF(D13-J13>0,D13-J13,0)","v":0},{"$f":"IF(E13-K13>0,E13-K13,0)","v":0},{"$f":"IF(F13-L13>0,F13-L13,0)","v":0}]
["TOTAL EQUILIBRE du compte de résultat prévisionnel (1) + (3) = (2) + (4)",{"$f":"B13+B14","v":0},{"$f":"C13+C14","v":0},{"$f":"D13+D14","v":0},0,{"$f":"F13+F14","v":0},"TOTAL EQUILIBRE du compte de résultat prévisionnel (1) + (3)  = (2) + (4)",{"$f":"H13+H14","v":0},{"$f":"I13+I14","v":0},0,0,{"$f":"L13+L14","v":0}]
["* Il s'agit des sous catégories de comptes présentant les contributions employeur au CAS Pensions.",{"$f":"\"Exécution N-1 : Différence charges de personnel entre tableau 2 et tableau 6 est de : \"&(ROUND(B9,0)-ROUND(#REF!+#REF!,0))","v":{"$error":"#REF!"}},{"$f":"\"BI : Différence charges de personnel entre tableau 2 et tableau 6 est de : \"&(ROUND(C9,0)-ROUND(#REF!+#REF!,0))","v":{"$error":"#REF!"}},{"$f":"\"Nouveau BR : Différence charges de personnel entre tableau 2 et tableau 6 est de : \"&(ROUND(D9,0)-ROUND(#REF!+#REF!,0))","v":{"$error":"#REF!"}},{"$f":"\"Somme des BR : Différence charges de personnel entre tableau 2 et tableau 6 est de : \"&(ROUND(E9,0)-ROUND(#REF!+#REF!,0))","v":{"$error":"#REF!"}},{"$f":"\"Budget BI+BR : Différence charges de personnel entre tableau 2 et tableau 6 est de : \"&(ROUND(F9,0)-ROUND(#REF!+#REF!,0))","v":{"$error":"#REF!"}}]
[null,{"$f":"IF(#REF!=\"\",IF(ROUND(B10,-1)<>ROUND(#REF!,-1),\"! Incohérence charges PC Tab2 SIE\",\"\"),\"\")","v":{"$error":"#REF!"}},{"$f":"IF(#REF!=\"\",IF(ROUND(C10,-1)<>ROUND(#REF!,-1),\"! Incohérence charges PC Tab2 SIE\",\"\"),\"\")","v":{"$error":"#REF!"}},{"$f":"IF(#REF!=\"\",IF(ROUND(D10,-1)<>ROUND(#REF!,-1),\"! Incohérence charges PC Tab2 SIE\",\"\"),\"\")","v":{"$error":"#REF!"}},{"$f":"IF(#REF!=\"\",IF(ROUND(E10,-1)<>ROUND(#REF!,-1),\"! Incohérence charges PC Tab2 SIE\",\"\"),\"\")","v":{"$error":"#REF!"}},{"$f":"IF(#REF!=\"\",IF(ROUND(F10,-1)<>ROUND(#REF!,-1),\"! Incohérence charges PCl Tab2 SIE\",\"\"),\"\")","v":{"$error":"#REF!"}}]
[]
["Calcul de la capacité d'autofinancement (CAF)"]
[]
[null,"Exécution N-1","Budget initial\n(g)","Nouveau BR","Somme des BR\n(yc nouveau BR) (h)","TOTAL : dernier budget modifié\n(i) = (g) + (h)"]
["Résultat prévisionnel de l'exercice \n(bénéfice (3) ou perte (-4)",{"$f":"IF(B14>0,B14,-H14)","v":0},{"$f":"IF(C14>0,C14,-I14)","v":0},{"$f":"IF(D14>0,D14,-J14)","v":0},{"$f":"IF(E14>0,E14,-K14)","v":0},{"$f":"IF(F14>0,F14,-L14)","v":0}]
["+  dotations aux amortissements, dépréciations et provisions",null,null,null,null,{"$f":"C23+E23","v":0}]
["-  reprises sur amortissements, dépréciations et provisions",null,null,null,null,{"$f":"C24+E24","v":0}]
["+ valeur nette comptable des éléments d'actifs cédés",null,null,null,null,{"$f":"C25+E25","v":0}]
["- produits de cession d'éléments d'actifs",null,null,null,null,{"$f":"C26+E26","v":0}]
["- quote-part des subventions d’investissement virée au résultat de l’exercice",null,null,null,null,{"$f":"C27+E27","v":0}]
["= CAF ou IAF*",{"$f":"SUM(B22:B27)","v":0},{"$f":"SUM(C22:C27)","v":0},0,0,{"$f":"SUM(F22:F27)","v":0}]
["* capacité d'autofinancement ou insuffisance d'autofinancement"]
[]
[]
["État prévisionnel de l'évolution de la situation patrimoniale en droits constatés"]
[]
["EMPLOIS","Exécution N-1","Budget initial\n(j)","Nouveau BR","Somme des BR\n(yc nouveau BR) (k)","TOTAL : dernier budget modifié\n(l) = (j) + (k)","RESSOURCES","Exécution N-1","Budget initial\n(m)","Nouveau BR","Somme des BR\n(yc nouveau BR) (n)","TOTAL : dernier budget modifié\n(o) = (m) + (n)"]
["Insuffisance d'autofinancement*",{"$f":"IF(B28<0,-B28,0)","v":0},{"$f":"IF(C28<0,-C28,0)","v":0},{"$f":"IF(D28<0,-D28,0)","v":0},{"$f":"IF(E28<0,-E28,0)","v":0},{"$f":"IF(F28<0,-F28,0)","v":0},"Capacité d'autofinancement*",{"$f":"IF(B28>0,B28,0)","v":0},{"$f":"IF(C28>0,C28,0)","v":0},{"$f":"IF(D28>0,D28,0)","v":0},{"$f":"IF(E28>0,E28,0)","v":0},{"$f":"IF(F28>0,F28,0)","v":0}]
["Investissements",null,null,null,null,{"$f":"C36+E36","v":0},"Financement de l'actif par l'État",null,null,null,null,{"$f":"I36+K36","v":0}]
[null,null,null,null,null,null,"Financement de l'actif par des tiers autres que l'Etat",null,null,null,null,{"$f":"I37+K37","v":0}]
[null,null,null,null,null,null,"Autres ressources",null,null,null,null,0]
["Remboursement des dettes financières",null,null,null,null,{"$f":"C39+E39","v":0},"Augmentation des dettes financières",null,null,null,null,0]
["TOTAL DES EMPLOIS (5)",{"$f":"SUM(B35:B39)","v":0},0,0,{"$f":"SUM(E35:E39)","v":0},{"$f":"SUM(F35:F39)","v":0},"TOTAL DES RESSOURCES (6)",{"$f":"SUM(H35:H39)","v":0},0,0,0,{"$f":"SUM(L35:L39)","v":0}]
["APPORT au FONDS DE ROULEMENT (7) = (6)-(5)",{"$f":"IF(H40-B40>0,H40-B40,0)","v":0},{"$f":"IF(I40-C40>0,I40-C40,0)","v":0},{"$f":"IF(J40-D40>0,J40-D40,0)","v":0},{"$f":"IF(K40-E40>0,K40-E40,0)","v":0},{"$f":"IF(L40-F40>0,L40-F40,0)","v":0},"PRELEVEMENT sur FONDS DE ROULEMENT (8) = (5)-(6)",{"$f":"IF(B40-H40>0,B40-H40,0)","v":0},{"$f":"IF(C40-I40>0,C40-I40,0)","v":0},{"$f":"IF(D40-J40>0,D40-J40,0)","v":0},{"$f":"IF(E40-K40>0,E40-K40,0)","v":0},{"$f":"IF(F40-L40>0,F40-L40,0)","v":0}]
[]
["POUR INFORMATION DE L'ORGANE DÉLIBÉRANT"]
[]
[null,null,null,null,null,null,null,"Exécution N-1\n(p)","Budget initial\n(q)","Nouveau BR","Somme des BR\n(yc nouveau BR) (r)","TOTAL : dernier budget modifié\nVariation (s) = (q) + (r)\nNiveau = (p) + (s)"]
["VARIATION DU FONDS DE ROULEMENT : APPORT (7) ou PRELEVEMENT (8)",null,null,null,null,null,null,{"$f":"IF(B41>0,B41,-H41)","v":0},{"$f":"IF(C41>0,C41,-I41)","v":0},{"$f":"IF(D41>0,D41,-J41)","v":0},{"$f":"IF(E41>0,E41,-K41)","v":0},{"$f":"I46+K46","v":0},null,{"$f":"IF(L46<0,IF(ROUND(L46,-1)=-ROUND(#REF!,-1),\"! Impossibilité Var fonds de roulement = Solde budg Tab2 SIE\",\"\"),IF(L46>0,IF(ROUND(L46,-1)=ROUND(#REF!,-1),\"! Impossibilité Var fonds de roulement = Solde budg Tab2 SIE\",\"\"),\"\"))","v":""}]
["Variation du BESOIN en FONDS DE ROULEMENT",null,null,null,null,null,null,null,null,null,null,{"$f":"I47+K47","v":0}]
["Variation de la TRESORERIE : ABONDEMENT (I) ou PRELEVEMENT (II) *",null,null,null,null,null,null,null,null,null,null,0]
["Niveau du FONDS DE ROULEMENT",null,null,null,null,null,null,null,null,null,null,{"$f":"H49+L46","v":0}]
["Niveau du BESOIN EN FONDS DE ROULEMENT",null,null,null,null,null,null,{"$f":"H49-H51","v":0},{"$f":"I49-I51","v":0},0,0,{"$f":"H50+L47","v":0}]
["Niveau de la TRESORERIE",null,null,null,null,null,null,null,null,null,null,0]
[]
["* : montant issu du tableau \"équilibre financier\""]

{"sheet":"7-tab Plan_tréso_Fondation","index":14,"n_rows":50,"n_cols":17,"rows_kept":50,"cut":false,"hidden":false,"merged":[[3,1,3,14],[0,1,0,14],[1,1,1,14],[49,12,49,13],[4,1,4,8],[49,14,49,15],[27,1,27,14],[7,1,7,14],[30,15,31,15]]}
[null,"Tableau 7- Université de Bretagne Sud (0561718N) : Fondation"]
[null,{"$f":"\"Plan de trésorerie - Budget consolidé \"&Maquette!B4&\" \"&Maquette!B5&\" \"&Maquette!B3","v":"Plan de trésorerie - Budget consolidé initial  2024"}]
[]
[null,"POUR INFORMATION DE L'ORGANE DÉLIBÉRANT"]
[]
[null,"( K€ )","janvier","février","mars","avril","mai","juin","juillet","août","septembre","octobre","novembre","décembre","TOTAL Variation de la trésorerie annuelle"]
[null,"(1) SOLDE INITIAL (début de mois)",251601.85,{"$f":"C49","v":243556.85},{"$f":"D49","v":235511.85},227466.85,219421.85,211376.85,196331.85,188286.85,180241.85,172196.85,164151.85,156106.85,{"$f":"SUM(C7:N7)","v":2446252.2000000007}]
[null,"ENCAISSEMENTS"]
[null,"Recettes budgétaires globalisées",{"$f":"SUM(C10:C14)","v":33250},{"$f":"SUM(D10:D14)","v":33250},33250,33250,33250,33250,33250,33250,33250,33250,33250,33250,399000]
[null,"Subvention pour charges de service public",null,null,null,null,null,null,null,null,null,null,null,null,{"$f":"SUM(C10:N10)","v":0},{"$f":"IF(ROUND(O10,-1)<>ROUND('2-tab_aut_budg_Fondation'!R12,-1),\"! Incohérence subv serv publ. Tab2 ETAB\",\"\")","v":""}]
[null,"Autres financements de l'Etat",null,null,null,null,null,null,null,null,null,null,null,null,{"$f":"SUM(C11:N11)","v":0},{"$f":"IF(ROUND(O11,-1)<>ROUND('2-tab_aut_budg_Fondation'!R13,-1),\"! Incohérence autres financ. Etat Tab2 ETAB\",\"\")","v":""}]
[null,"Fiscalité affectée",null,null,null,null,null,null,null,null,null,null,null,null,0,{"$f":"IF(ROUND(O12,-1)<>ROUND('2-tab_aut_budg_Fondation'!R14,-1),\"! Incohérence fiscalité affectée Tab2 ETAB\",\"\")","v":""}]
[null,"Autres financements publics",null,null,null,null,null,null,null,null,null,null,null,null,0,{"$f":"IF(ROUND(O13,-1)<>ROUND('2-tab_aut_budg_Fondation'!R15,-1),\"! Incohérence autres financ. publics Tab2 ETAB\",\"\")","v":""}]
[null,"Recettes propres",33250,33250,33250,33250,33250,33250,33250,33250,33250,33250,33250,33250,399000,{"$f":"IF(ROUND(O14,-1)<>ROUND('2-tab_aut_budg_Fondation'!R16,-1),\"! Incohérence recettes propres Tab2 ETAB\",\"\")","v":""}]
[null,"Recettes budgétaires fléchées",{"$f":"SUM(C16:C18)","v":0},{"$f":"SUM(D16:D18)","v":0},0,0,0,0,0,0,0,0,0,0,{"$f":"SUM(C15:N15)","v":0}]
[null,"Financements de l'Etat fléchés",null,null,null,null,null,null,null,null,null,null,null,null,0,{"$f":"IF(ROUND(O16,-1)<>ROUND('2-tab_aut_budg_Fondation'!R19,-1),\"! Incohérence Financ. Etat fléchés Tab2 ETAB\",\"\")","v":""},{"$f":"IF(ROUND(O16,-1)<>ROUND(#REF!,-1),\"! Incohérence Financ. Etat fléchés avec Tab8 ETAB\",\"\")","v":{"$error":"#REF!"}}]
[null,"Autres financements publics fléchés",null,null,null,null,null,null,null,null,null,null,null,null,0,{"$f":"IF(ROUND(O17,-1)<>ROUND('2-tab_aut_budg_Fondation'!R20,-1),\"! Incohérence Autres financ. fléchés Tab2 ETAB\",\"\")","v":""},{"$f":"IF(ROUND(O17,-1)<>ROUND(#REF!,-1),\"! Incohérence Autres financ. fléchés avec Tab8 ETAB\",\"\")","v":{"$error":"#REF!"}}]
[null,"Recettes propres fléchées",null,null,null,null,null,null,null,null,null,null,null,null,0,{"$f":"IF(ROUND(O18,-1)<>ROUND('2-tab_aut_budg_Fondation'!R21,-1),\"! Incohérence recettes propres fléchées Tab2 ETAB\",\"\")","v":""},{"$f":"IF(ROUND(O18,-1)<>ROUND(#REF!,-1),\"! Incohérence Recettes propres fléchées avec Tab8 ETAB\",\"\")","v":{"$error":"#REF!"}}]
[null,"Opérations non budgétaires",{"$f":"SUM(C20:C22)","v":0},{"$f":"SUM(D20:D22)","v":0},0,0,0,0,0,0,0,0,0,0,0,{"$f":"IF(ROUND(O19,-1)<>ROUND('4-tab_financier_Fondation'!M18,-1),\"! Incohérence Emprunts Tab4\",\"\")","v":""}]
[null,"Emprunts : encaissements en capital",null,null,null,null,null,null,null,null,null,null,null,null,0]
[null,"Prêts : encaissements en capital",null,null,null,null,null,null,null,null,null,null,null,null,0]
[null,"Dépôts et cautionnements",null,null,null,null,null,null,null,null,null,null,null,null,0]
[null,"Opérations gérées en comptes de tiers :",{"$f":"SUM(C24:C26)","v":0},{"$f":"SUM(D24:D26)","v":0},0,0,0,0,0,0,0,0,0,0,0,{"$f":"O23-O43","v":0}]
[null,"TVA encaissée",null,null,null,null,null,null,null,null,null,null,null,null,0]
[null,"Dispositifs d'intervention pour compte de tiers : encaissements",null,null,null,null,null,null,null,null,null,null,null,null,0]
[null,"Autres encaissements d'opérations gérées en comptes de tiers",null,null,null,null,null,null,null,null,null,null,null,null,0]
[null,"A. TOTAL",{"$f":"C23+C19+C15+C9","v":33250},{"$f":"D23+D19+D15+D9","v":33250},33250,33250,33250,33250,33250,33250,33250,33250,33250,33250,399000]
[null,"DECAISSEMENTS"]
[null,"Dépenses liées à des recettes globalisées",{"$f":"SUM(C30:C33)","v":41295},{"$f":"SUM(D30:D33)","v":41295},41295,41295,41295,48295,41295,41295,41295,41295,41295,48431,{"$f":"SUM(C29:N29)","v":509676}]
[null,"Personnel",21885,21885,21885,21885,21885,21885,21885,21885,21885,21885,21885,21941,{"$f":"SUM(C30:N30)","v":262676},{"$f":"IF(ROUND(SUM(O30,O35),-1)<>ROUND('2-tab_aut_budg_Fondation'!L11+'2-tab_aut_budg_Fondation'!L24,-1),\"! Incohérence Personnel Tab2 ETAB\",\"\")","v":""}]
[null,"Fonctionnement",19410,19410,19410,19410,19410,19410,19410,19410,19410,19410,19410,19490,233000,{"$f":"IF(ROUND(SUM(O31:O32,O36:O37),-1)<>ROUND('2-tab_aut_budg_Fondation'!L15+'2-tab_aut_budg_Fondation'!L25,-1),\"! Incohérence Fonct et Interv. Tab2 ETAB\",\"\")","v":""}]
[null,"Intervention",null,null,null,null,null,null,null,null,null,null,null,null,0]
[null,"Investissement",0,0,0,0,0,7000,0,0,0,0,0,7000,14000,{"$f":"IF(ROUND(SUM(O33,O38),-1)<>ROUND('2-tab_aut_budg_Fondation'!L20+'2-tab_aut_budg_Fondation'!L26,-1),\"! Incohérence Invt Tab2 ETAB\",\"\")","v":""}]
[null,"Dépenses liées à des recettes fléchées",{"$f":"SUM(C35:C38)","v":0},{"$f":"SUM(D35:D38)","v":0},0,0,0,0,0,0,0,0,0,0,0]
[null,"Personnel",null,null,null,null,null,null,null,null,null,null,null,null,0,null,{"$f":"IF(ROUND(O35,-1)<>ROUND(#REF!,-1),\"! Incohérence dépenses pers. fléchées avec Tab8 ETAB\",\"\")","v":{"$error":"#REF!"}}]
[null,"Fonctionnement",null,null,null,null,null,null,null,null,null,null,null,null,0,null,{"$f":"IF(ROUND(SUM(O36:O37),-1)<>ROUND(#REF!,-1),\"! Incohérence dépenses Fonct. fléchées avec Tab8 ETAB\",\"\")","v":{"$error":"#REF!"}}]
[null,"Intervention",null,null,null,null,null,null,null,null,null,null,null,null,0]
[null,"Investissement",null,null,null,null,null,null,null,null,null,null,null,null,0,null,{"$f":"IF(ROUND(O38,-1)<>ROUND(#REF!,-1),\"! Incohérence dépenses invest fléchées avec Tab8 ETAB\",\"\")","v":{"$error":"#REF!"}}]
[null,"Opérations non budgétaires",{"$f":"SUM(C40:C42)","v":0},{"$f":"SUM(D40:D42)","v":0},0,0,0,0,0,0,0,0,0,0,0,{"$f":"IF(ROUND(O39,-1)<>ROUND('4-tab_financier_Fondation'!G18,-1),\"! Incohérence Emprunts Tab4\",\"\")","v":""}]
[null,"Emprunts : remboursements en capital",null,null,null,null,null,null,null,null,null,null,null,null,0]
[null,"Prêts : décaissements en capital",null,null,null,null,null,null,null,null,null,null,null,null,0]
[null,"Dépôts et cautionnements",null,null,null,null,null,null,null,null,null,null,null,null,0]
[null,"Opérations gérées en compte de tiers :",{"$f":"SUM(C44:C46)","v":0},{"$f":"SUM(D44:D46)","v":0},0,0,0,0,0,0,0,0,0,0,0,{"$f":"IF(ROUND(O43,-1)<>ROUND('4-tab_financier_Fondation'!G20+'4-tab_financier_Fondation'!G22,-1),\"! Incohérence Compte tiers Tab4\",\"\")","v":""}]
[null,"TVA décaissée",null,null,null,null,null,null,null,null,null,null,null,null,0]
[null,"Dispositifs d'intervention pour compte de tiers : décaissements",null,null,null,null,null,null,null,null,null,null,null,null,0]
[null,"Autres décaissements d'opérations gérées en comptes de tiers",null,null,null,null,null,null,null,null,null,null,null,null,0]
[null,"B. TOTAL",{"$f":"C43+C39+C34+C29","v":41295},{"$f":"D43+D39+D34+D29","v":41295},41295,41295,41295,48295,41295,41295,41295,41295,41295,48431,509676]
[null,"(2) SOLDE DU MOIS = A - B",{"$f":"C27-C47","v":-8045},{"$f":"D27-D47","v":-8045},-8045,-8045,-8045,-15045,-8045,-8045,-8045,-8045,-8045,-15181,{"$f":"SUM(C48:N48)","v":-110676},{"$f":"IF(O48<0,IF(-ROUND(O48,-1)<>ROUND('4-tab_financier_Fondation'!M25,-1),\"! Incohérence variation trésorerie Tab4\",\"\"),IF(ROUND('7-tab Plan_tréso_Fondation'!O48,-1)<>ROUND('4-tab_financier_Fondation'!G25,-1),\"! Incohérence variation trésorerie Tab4\",\"\"))","v":""}]
[null,"SOLDE CUMULE (1) + (2)",{"$f":"C48+C7","v":243556.85},{"$f":"D48+D7","v":235511.85},227466.85,219421.85,211376.85,196331.85,188286.85,180241.85,172196.85,164151.85,156106.85,140925.85,null,{"$f":"IF(ROUND(N49,-1)<>ROUND('6-tab CR_TF_Fondation'!L51,-1),\"! Incohérence niveau trésorerie avec Tab6 ETAB\",\"\")","v":""}]
[null,null,null,null,null,null,null,null,null,null,null,null,null,null,"Variation de trésorerie correspondant à celle du tableau d'équilibre financier (I) ou (II)"]

{"sheet":"8-tab recettes_fléchées_AGR","index":15,"n_rows":30,"n_cols":9,"rows_kept":30,"cut":false,"hidden":true,"merged":[[0,1,0,6],[1,1,1,6],[4,1,4,6]]}
[null,"Tableau 8 - Université de Bretagne Sud (0561718N) : Etablissement principal + Fondation"]
[null,{"$f":"\"Opérations liées aux recettes fléchées - Budget agrégé \"&Maquette!B4&\" \"&Maquette!B5&\" \"&Maquette!B3","v":"Opérations liées aux recettes fléchées - Budget agrégé initial  2024"}]
[]
[]
[null,"POUR INFORMATION DE L'ORGANE DÉLIBÉRANT"]
[]
[]
[null,null,"Antérieures à N\nnon dénouées","N","N+1","N+2","N+3"]
[null,"Position de financement des opérations fléchées en début d'exercice (a)"]
[]
[null,"Recettes fléchées (b)",{"$f":"SUM(C13:C15)","v":0},{"$f":"SUM(D13:D15)","v":0},0,0,0]
[]
[null,"Financements de l'État fléchés",null,null,null,null,null,{"$f":"IF(ROUND(D13,-1)<>ROUND('2-tab_aut_budg_AGR'!R19,-1),\"! Incohérence Financ. Etat fléchés avec Tab2 AGR\",\"\")","v":""},{"$f":"IF(ROUND(D13,-1)<>ROUND('3-tab_destination_origine_AGR'!H50,-1),\"! Incohérence Financ. Etat fléchés avec Tab3 AGR\",\"\")","v":""}]
[null,"Autres financements publics fléchés",null,null,null,null,null,{"$f":"IF(ROUND(D14,-1)<>ROUND('2-tab_aut_budg_AGR'!R20,-1),\"! Incohérence Autres financ. fléchés avec Tab2 AGR\",\"\")","v":""},{"$f":"IF(ROUND(D14,-1)<>ROUND('3-tab_destination_origine_AGR'!I50,-1),\"! Incohérence Autres financ. fléchés avec Tab3 AGR\",\"\")","v":""}]
[null,"Recettes propres fléchées",null,null,null,null,null,{"$f":"IF(ROUND(D15,-1)<>ROUND('2-tab_aut_budg_AGR'!R21,-1),\"! Incohérence Recettes propres fléchées avec Tab2 AGR\",\"\")","v":""},{"$f":"IF(ROUND(D15,-1)<>ROUND('3-tab_destination_origine_AGR'!J50,-1),\"! Incohérence Recettes propres fléchées avec Tab3 AGR\",\"\")","v":""}]
[]
[null,"Dépenses sur recettes fléchées (c)",{"$f":"C19+C21+C24","v":0},{"$f":"D19+D21+D24","v":0},0,0,0]
[]
[null,"Personnel",{"$f":"C20","v":0},{"$f":"D20","v":0},0,0,0]
[null,"AE=CP"]
[null,"Fonctionnement et intervention",{"$f":"C23","v":0},{"$f":"D23","v":0},0,0,0]
[null,"AE"]
[null,"CP"]
[null,"Investissement",{"$f":"C26","v":0},{"$f":"D26","v":0},0,0,0]
[null,"AE"]
[null,"CP"]
[]
[null,"Solde budgétaire de l'exercice résultant des opérations fléchées (b) - (c)",{"$f":"C11-C17","v":0},{"$f":"D11-D17","v":0},{"$f":"E11-E17","v":0},0,0]
[null,null,null,"(1)"]
[null,null,null,"(1) repris au tableau \"Équilibre financier\" en (a) (tableau 4)"]

{"sheet":"Annexe Synthèse_Fondation","index":16,"n_rows":63,"n_cols":8,"rows_kept":63,"cut":false,"hidden":false,"merged":[[62,3,62,4],[0,0,0,8],[56,5,56,6],[57,3,57,4],[57,5,57,6],[58,5,58,6],[59,5,59,6],[61,3,61,4],[45,3,45,4],[46,5,46,6],[47,5,47,6],[49,3,49,4],[51,3,51,4],[53,1,59,1],[53,3,53,4],[55,3,55,4],[25,3,25,4],[55,5,55,6],[56,3,56,4],[31,3,31,4],[37,3,37,4],[37,5,37,6],[38,5,38,6],[39,5,39,6],[41,3,41,4],[14,3,14,4],[16,3,16,4],[17,3,17,4],[18,3,18,4],[20,3,20,4],[1,0,1,8],[38,8,39,8],[43,3,43,4],[46,8,47,8],[6,1,12,1],[6,3,6,4],[6,5,6,6],[8,3,8,4],[8,5,8,6],[9,3,9,4],[9,5,9,6],[10,3,10,4],[10,5,10,6],[11,5,11,6],[12,5,12,6],[14,1,51,1]]}
["ANNEXE 5 - Université de Bretagne Sud (0561718N) : Fondation"]
[{"$f":"\"Synthèse budgétaire et comptable - Budget consolidé \"&Maquette!B4&\" \"&Maquette!B5&\" \"&Maquette!B3","v":"Synthèse budgétaire et comptable - Budget consolidé initial  2024"}]
[]
[null,"POUR INFORMATION DE L'ORGANE DÉLIBÉRANT"]
[]
[null,null,null,null,null,null,null,{"$f":"IF(Maquette!B4=\"initial\",\"BI \"&Maquette!B5,IF(Maquette!B4=\"rectificatif\",\"BR \"&Maquette!B5,\"\"))","v":"BI "}]
[null,"Stocks initiaux",null,1,null,"Niveau initial de restes à payer",null,15199.26]
[]
[null,null,null,2,null,"Niveau initial du fonds de roulement",null,{"$f":"'6-tab CR_TF_Fondation'!H49","v":355947.62}]
[null,null,null,3,null,"Niveau initial du besoin en fonds de roulement",null,{"$f":"H9-H11+0.06","v":104345.13999999998}]
[null,null,null,4,null,"Niveau initial de la trésorerie",null,{"$f":"'6-tab CR_TF_Fondation'!H51","v":251602.54}]
[null,null,null,null,"4.a","dont niveau initial de la trésorerie fléchée"]
[null,null,null,null,"4.b","dont niveau initial de la trésorerie non fléchée",null,{"$f":"H11","v":251602.54}]
[]
[null,"Flux de l'année",null,5,null,"Autorisations d'engagement",null,{"$f":"'2-tab_aut_budg_Fondation'!K28","v":519676}]
[]
[null,null,null,6,null,"Résultat patrimonial",null,{"$f":"IF('6-tab CR_TF_Fondation'!F14>0,'6-tab CR_TF_Fondation'!F14,-'6-tab CR_TF_Fondation'!L14)","v":-40337}]
[null,null,null,7,null,"Capacité d'autofinancement (CAF)",null,{"$f":"'6-tab CR_TF_Fondation'!F28","v":-30646}]
[null,null,null,8,null,"Variation du fonds de roulement",null,{"$f":"'6-tab CR_TF_Fondation'!L46","v":-44646}]
[]
[null,null,null,9,"9.a","Opérations bilancielles non budgétaires","SENS",{"$f":"SUM(H22:H24)","v":0}]
[null,null,null,null,null,"Nouvel emprunt / remboursement de prêt","+ / -"]
[null,null,null,null,null,"Remboursement d'emprunt / prêt accordé","+"]
[null,null,null,null,null,"Cautionnements et dépôts","-",{"$f":"'7-tab Plan_tréso_Fondation'!O22-'7-tab Plan_tréso_Fondation'!O42","v":0}]
[]
[null,null,null,10,"9.a","Opérations comptables non retraitées par la CAF, non budgétaires","SENS",{"$f":"SUM(H27:H30)","v":0}]
[null,null,null,null,null,"Variation des stocks","+ / -"]
[null,null,null,null,null,"Production immobilisée","+"]
[null,null,null,null,null,"Charges sur créances irrécouvrables","-"]
[null,null,null,null,null,"Produits divers de gestion courante","+"]
[]
[null,null,null,11,"9.b","Décalages de flux de trésorerie liés aux opérations budgétaires","SENS",{"$f":"H34-H36","v":66030}]
[null,null,null,null,null,"Ecart entre les produits / ressources et les encaissements relatifs à des opérations sur exercices antérieurs","+ / -"]
[null,null,null,null,null,"Ecart entre les produits / ressources et les encaissements relatifs à des opérations de l'exercice en cours","+ / -",66000]
[null,null,null,null,null,"Ecart entre les charges / immobilisations et les décaissements relatifs à des opérations sur exercices antérieurs","+ / -"]
[null,null,null,null,null,"Ecart entre les charges / immobilisations et les décaissements relatifs à des opérations de l'exercice en cours","+ / -",-30]
[]
[null,null,null,12,null,"Solde budgétaire = 8 - 9 - 10 - 11",null,{"$f":"H19-H26-H32-H21","v":-110676}]
[null,null,null,null,"12.a","Recettes budgétaires",null,{"$f":"'2-tab_aut_budg_Fondation'!R28","v":399000}]
[null,null,null,null,"12.b","Crédits de paiement ouverts",null,{"$f":"'2-tab_aut_budg_Fondation'!L28","v":509676}]
[]
[null,null,null,13,"9.c","Flux de trésorerie liés aux opérations au nom et pour le compte de tiers",null,{"$f":"'4-tab_financier_Fondation'!M20-'4-tab_financier_Fondation'!G20","v":0}]
[]
[null,null,null,14,"9.c","Flux de trésorerie liés aux autres encaissements / décaissements sur comptes de tiers (non budgétaires)",null,{"$f":"'4-tab_financier_Fondation'!M22-'4-tab_financier_Fondation'!G22","v":0}]
[]
[null,null,null,15,null,"Variation de la trésorerie = 12 - 13 - 14",null,{"$f":"H38+H42-H44","v":-110676}]
[null,null,null,null,"15.a","dont variation de la trésorerie fléchée",null,{"$f":"'4-tab_financier_Fondation'!G27-'4-tab_financier_Fondation'!M27","v":0}]
[null,null,null,null,"15.b","dont variation de la trésorerie non fléchée",null,{"$f":"'4-tab_financier_Fondation'!G29-'4-tab_financier_Fondation'!M29","v":-110676}]
[]
[null,null,null,16,null,"Variation du besoin en fonds de roulement = 9 + 10 + 11 - 13 + 14",null,{"$f":"H26+H32-H42+H21+H44","v":66030}]
[]
[null,null,null,17,null,"Restes à payer",null,{"$f":"H15-H40","v":10000}]
[]
[null,"Stocks finaux",null,18,null,"Niveau final de restes à payer",null,{"$f":"H7+H52","v":25199.260000000002}]
[]
[null,null,null,19,null,"Niveau final du fonds de roulement",null,{"$f":"H9+H19","v":311301.62}]
[null,null,null,20,null,"Niveau final du besoin en fonds de roulement",null,{"$f":"H56-H58","v":170375.08}]
[null,null,null,21,null,"Niveau final de la trésorerie",null,{"$f":"H11+H46","v":140926.54}]
[null,null,null,null,"21.a","dont niveau final de la trésorerie fléchée",null,{"$f":"H12+H47","v":0}]
[null,null,null,null,"21.b","dont niveau final de la trésorerie non fléchée",null,{"$f":"H13+H48","v":140926.54}]
[]
[null,null,null,null,null,"Comptabilité budgétaire"]
[null,null,null,null,null,"Comptabilité générale"]